Workbook

Sheet To_Do (hidden)
A1: Date | B1: Version VGF | C1: Feuille | D1: Modification faite / à faire | E1: 0.25 | F1: 0.5 | G1: 0.75 | H1: 1 | I1: Date réalisé à 100% | J1: Date réalisé à 100% par qui | K1: Réponse ou commentaire | L1: Non du fichier
A2: 2014-08-01 | B2: Outil d'aide à la détermination du système d'ECS-2014-07-31_2.xlsx | C2: Calcul2 | D2: Contrôler les valeur de cellule G57:J63 | E2: x | F2: x | G2: x | H2: x | I2: 2014-08-28 | J2: CDS | K2: Données du Guide collectifs
C3: Calcul2 | D3: Calculer les valeurs des cellules D57:F57 | E3: x | F3: x | G3: x | H3: x | I3: 2014-08-28 | J3: CDS | K3: Données du Guide collectifs
C4: Calcul2 | D4: Puissance minimum du générateur pour soutirage 60°C réponse D90 D102 D114 font référence à la puissance de l'échangeur. Ne faudrait il pas faire référence à la puissance de transition ligne 76 | E4: x | F4: x | G4: x | H4: x | I4: 2014-08-01 | J4: GM
C5: Calcul2 | D5: Puissance minimum du générateur réponse D159 font référence à la puissance de semi accumulé. Ne faudrait il pas faire référence à la puissance de transition ligne 148 | E5: x | F5: x | G5: x | H5: x | I5: 2014-08-01 | J5: GM
C6: Table | D6: restriction de la liste [type_bat] à logement collectif et hôtellerie | E6: x | F6: x | G6: x | H6: x | I6: 2014-08-01 | J6: GM | K6: phase 1 de l'outil
D7: confirmation logement collectif seul pour la réunion prescrition | E7: x | F7: x | G7: x | H7: x | I7: 2014-09-09 | J7: CDS
C8: Calcul2 | D8: Vérifier les formules avec les autres typologie de projet
C9: Données entrée | D9: Brider les solutions avec comme message" Pour ce type d'installation qui nécessite un besoin élévé en ECS, merci de vous rapprocher du commercial de votre secteur"
C10: Calcul2 | D10: Points avec Tony F concernant les données ECS | E10: x | K10: Vu avec Tony, il relance pour avoir l'ensemble des données comme celle reçu en fin juillet
D11: Formules de Tony et outils sur la chute des puissances entre SI/SA - Controler les puissances
B12: 2014-09-04 | C12: Calcul2 | D12: Vsu = 0,8 x V ballon pour calcul PSA (VIHR) | E12: x | F12: x | G12: x | H12: x | I12: 2014-09-04 | J12: GM
C13: Calcul2 | D13: Contrôle si Psa est bien > à equivalence de rechauffage < à 8 h modifier par Contrôle si Psa ou PSI est bien > à equivalence de rechauffage < à 8 h | E13: x | F13: x | G13: x | H13: x | I13: 2014-09-04 | J13: GM
C14: Calcul2 | D14: =SI($D$159<>FAUX;TempVPM_W!$B$34;"") reectification du renvoie | E14: x | F14: x | G14: x | H14: x | I14: 2014-09-09 | J14: GM
A15: 2014-09-09 | B15: 2014-09-09 | C15: Calcul2 | D15: ajout des plages nommées pour module ECS Vpm Tpm Vph Tph s | E15: x | F15: x | G15: x | H15: x | I15: 2014-09-09 | J15: ES | K15: Transparent pour l'outil ECS
A16: 2014-09-09 | B16: 2014-09-09 | C16: Calcul2 | D16: insertion cellules W45:AK45 pour coef simultanéité | E16: x | F16: x | G16: x | H16: x | I16: 2014-09-09 | J16: ES
A17: 2014-09-09 | B17: 2014-09-09 | C17: table ECS | D17: onglet renommé était table | E17: x | F17: x | G17: x | H17: x | I17: 2014-09-09 | J17: ES | K17: Transparent pour l'outil ECS
A18: 2014-09-11 | B18: 2014-09-11 | C18: Données entrée | D18: Modification de la version de l'outil avec passage au mois de septembre | E18: X | F18: X | G18: X | H18: X | I18: 2014-09-11 | J18: CDS
A19: 2014-09-11 | B19: 2014-09-11 | C19: Données entrée | D19: Passage des résultats en arrière plan pour cocher le résultat souhaité | E19: X | F19: X | G19: X | H19: X | I19: 2014-09-11 | J19: CDS
A20: 2014-09-18 | B20: 2014-09-18 | C20: Données entrée | D20: Afficher le nombre de logement total en dessous du tableau typologie
A21: 2014-09-18 | B21: 2014-09-18 | C21: Données entrée | D21: Faire des bulles d'aides comme dans l'outil chaufferie pour expliquer le couple puissance / volume des ballons uniSTOR & allSTOR
A22: 2014-10-30 | B22: 2014-10-30 | C22: Données entrée | D22: Suite à la remarque de Guy concernant la température moyenne eau froide, il est préciser "température moyenne mensuelle la plus faible" | E22: X | F22: X | G22: X | H22: X | I22: 2014-10-30
A23: 2014-10-30 | B23: 2014-10-30 | C23: Guide de choix | D23: Correction de la faute d'orthographe sur explication allSTOR | E23: X | F23: X | G23: X | H23: X | I23: 2014-10-30
A24: 2014-10-30 | B24: 2014-10-30 | C24: Données entrée | D24: Empecher la saisie de texte lorsqu'on attend un entier dans le nb de logement | E24: X | F24: X | G24: X | H24: X | I24: 2014-10-30

Sheet Export (hidden)
A1: description | B1: ref | C1: Qté | D1: ligne active | E1: nombre de ligne active | H1: Export1 | I1: ="'Export'!A2:A"&N -> 'Export'!A2:A2
B2: =Offre!B68 -> 0010003078 | C2: =Offre!C68 -> 1 | D2: =IF(OR(C2=0,C2=""),0,1) -> 1 | E2: =MAX(2,D2:D77) -> 2 | H2: Export2 | I2: ="'Export'!B2:B"&N -> 'Export'!B2:B2
B3: =Offre!B69 ->  | C3: =Offre!C69 ->  | D3: =IF(OR(C3=0,C3=""),0,1) -> 0 | H3: Export3 | I3: ="'Export'!C2:C"&N -> 'Export'!C2:C2
B4: =Offre!B70 ->  | C4: =Offre!C70 ->  | D4: 0
B5: =Offre!B71 ->  | C5: =Offre!C71 ->  | D5: 0
D6: 0
D7: 0
D8: 0
D9: 0
D10: 0
D11: 0
D12: 0
D13: 0
D14: 0
D15: 0
D16: 0
D17: 0
D18: 0
D19: 0
D20: 0
D21: 0
D22: 0
D23: 0
D24: 0
D25: 0
D26: 0
D27: 0
D28: 0
D29: 0
D30: 0
D31: 0
D32: 0
D33: 0
D34: 0
D35: 0
D36: 0
D37: 0
D38: 0
D39: 0
D40: 0
D41: 0
D42: 0
D43: 0
D44: 0
D45: 0
D46: 0
D47: 0
D48: 0
D49: 0
D50: 0
D51: 0
D52: 0
D53: 0
D54: 0
D55: 0
D56: 0
D57: 0
D58: 0
D59: 0
D60: 0
D61: 0
D62: 0
D63: 0
D64: 0
D65: 0
D66: 0
D67: =IF(OR(C67=0,C67=""),0,1) -> 0
D68: 0
D69: 0
D70: 0
D71: 0
D72: 0
D73: 0
D74: 0
D75: 0
D76: 0
D77: 0

Sheet Données d'entrée
O2: 1 | Q2: 1 | R2: Cellule liée au choix de la solution
O3: 1
O4: 1
O5: 1
O6: 1
O7: 1
O8: 1
C9: Dossier | H9: Référence chantier | O9: 1 | P9: 1
B10: N° Ref : | G10: Nom : | O10: 1 | P10: 1
B11: Date : | C11: =TODAY() -> 2020-12-11 | G11: Code postal : | H11: 59490 | I11: Ville : | J11: VILLENEUVE D'ASQ | O11: 1 | P11: 1
O12: 1 | P12: 1
C13: Bureau d'étude | H13: Installateur | O13: 1 | P13: 1
B14: Société : | G14: Société : | O14: 1 | P14: 1
B15: Nom : | G15: Nom : | O15: 1 | P15: 1
B16: Code postal : | D16: Ville : | G16: Code postal : | I16: Ville : | O16: 1 | P16: 1
O17: 1 | P17: 1
C18: Maître d'ouvrage | H18: Distributeur | O18: 1 | P18: 1
B19: Société : | G19: Société : | O19: 1 | P19: 1
B20: Nom : | G20: Nom : | O20: 1 | P20: 1
B21: Code postal : | D21: Ville : | G21: Code postal : | I21: Ville : | O21: 1 | P21: 1
O22: 1
O23: 1
B24: Définition du Projet | O24: 1
J25: Commentaires | O25: 1
B26: =Calcul2!B44 -> Profils de l'établissement | G26: Logements collectifs | H26: =IF(G26="NON","La production de chaleur ne sera pas chiffrée","") ->  | I26: =IF(G26="NON","La production de chaleur ne sera pas chiffrée","") ->  | O26: 1 | P26: =MATCH(G26,type_bat,0) -> 1
B27: =Calcul2!B176 -> Logements collectifs | G27: =Calcul2!C176 -> Oui | O27: =IF(P27=$P$26,1,0) -> 0 | P27: 0
B28: =Calcul2!B177 -> Nombre de logements de type 1 ou studio | G28: 11 | O28: =IF(P28=$P$26,1,0) -> 1 | P28: 1
B29: =Calcul2!B178 -> Nombre de logements de type 2 | O29: =IF(P29=$P$26,1,0) -> 1 | P29: 1
B30: =Calcul2!B179 -> Nombre de logements de type 3 | O30: 1 | P30: 1
B31: =Calcul2!B180 -> Nombre de logements de type 4 | O31: 1 | P31: 1
B32: =Calcul2!B181 -> Nombre de logements de type 5 | O32: 1 | P32: 1
B33: =Calcul2!B184 -> Nombre total de logements | G33: =Calcul2!D184 -> 11 | O33: 1 | P33: 1
B34: =Calcul2!B182 -> Consommation journalière | G34: =Calcul2!C183 -> 550 | O34: 1 | P34: 1
B35: =Calcul2!B194 -> Hôtellerie | G35: =Calcul2!C194 -> Oui | O35: 0 | P35: 0
B36: Catégorie | G36: Hôtel 1 * | O36: =IF(P36=$P$26,1,0) -> 0 | P36: 2
B37: Nombre de chambres | G37: 50 | O37: =IF(P37=$P$26,1,0) -> 0 | P37: 2
B38: Hotel de sport d'hiver, de seminaire ou de bord de mer ? | G38: Oui | O38: =IF(P38=$P$26,1,0) -> 0 | P38: 2
B39: Coefficient de simultanéité | G39: =Calcul2!C201 -> 0.8 | O39: 0 | P39: 2
B40: Choix du coefficient de simultanéité, correction manuelle | O40: 0 | P40: 2
B41: =Calcul2!B197 -> Consommation journalière | G41: =IF(ISERROR(Calcul2!C203)=TRUE,"Erreur de saisie",Calcul2!C203) -> 3000 | O41: 0 | P41: 2
B42: =Calcul2!A212 -> Camping | G42: =Calcul2!C214 -> Oui | O42: 0 | P42: 0
B43: =Calcul2!B215 -> Sanitaire collectif + lavage vaisselle | G43: 5 | O43: 0 | P43: 3
B44: =Calcul2!B216 -> Consommation journalière | G44: =Calcul2!C217 -> 300 | H44: =Calcul2!D217 -> Litres à 60°C | O44: 0 | P44: 3
B45: =Calcul2!B227 -> Restauration | G45: =Calcul2!C227 -> Oui | O45: 0 | P45: 0
B46: Type d'etablisement de restauration | G46: Traditionnelle (50 à 150 repas par jour) | O46: 0 | P46: 4
B47: Nombre de repas | G47: 10 | O47: 0 | P47: 4
B48: =Calcul2!B230 -> Consommation journalière | G48: =Calcul2!C231 -> 120 | H48: =Calcul2!D231 -> Litres à 60°C | O48: 0 | P48: 4
B49: =Calcul2!B241 -> Santé | G49: =Calcul2!C241 -> Oui | H49: =IF(G50="NON","Le préchauffage solaire ne sera pas chiffré","") ->  | I49: =IF(G50="NON","Le préchauffage solaire ne sera pas chiffré","") ->  | O49: 0 | P49: 0
B50: Type d'etablisement de santé | G50: Maison de retraite | O50: 0 | P50: 5
B51: Nombre de lits | G51: 25 | O51: 0 | P51: 5
B52: =Calcul2!B244 -> Consommation journalière | G52: =Calcul2!C245 -> 1000 | H52: =Calcul2!D245 -> Litres à 60°C | I52: =IF(G53="NON","Le préchauffage solaire ne sera pas chiffré","") ->  | O52: 0 | P52: 5
B53: =Calcul2!B255 -> Internat | G53: =Calcul2!C255 -> Oui | O53: 0
B54: =Calcul2!B256 -> Nombre d'interne | O54: 0 | P54: 6
B55: =Calcul2!B257 -> Consommation journalière | G55: =Calcul2!C258 -> 0 | H55: =Calcul2!D258 -> Litres à 60°C | O55: 0 | P55: 6
B56: =Calcul2!A266 -> Sport | G56: =Calcul2!C268 -> Oui | H56: =IF(G57="NON","La production ECS ne sera pas chiffrée","") ->  | I56: =IF(G57="NON","La production ECS ne sera pas chiffrée","") ->  | O56: 0 | P56: 0
B57: =Calcul2!B269 -> En salle | H57: =IF(G58="NON","Le préchauffage solaire ne sera pas chiffré","") ->  | I57: =IF(G58="NON","Le préchauffage solaire ne sera pas chiffré","") ->  | O57: 0 | P57: 7
B58: =Calcul2!B270 -> Vestiaires / Foot / rugby | O58: 0 | P58: 7
B59: =Calcul2!B271 -> Consommation journalière | G59: =Calcul2!C272 -> 0 | H59: =Calcul2!D272 -> Litres à 60°C | O59: 0 | P59: 7
B60: Température primaire | G60: 80 | O60: 1
B61: Température de consigne ECS | G61: 60 | O61: 1
O62: 1
B63: Hypothèses (source AICVF - 2004) | O63: 1
J64: Commentaires | O64: 1
B65: Température moyenne mensuelle la plus faible | G65: ='Table ECS'!E176 -> 5.7 | I65: suivant la référence chantier renseigné | O65: 1
B66: =B27 -> Logements collectifs | G66: Consommation par type de logement | O66: =IF(P66=$P$26,1,0) -> 0 | P66: 0
B67: =B28 -> Nombre de logements de type 1 ou studio | G67: =Calcul2!D177 -> 50 | O67: 1 | P67: 1
B68: =B29 -> Nombre de logements de type 2 | G68: =Calcul2!D178 -> 75 | O68: 1 | P68: 1
B69: Nombre de logements de type 3 | G69: =Calcul2!D179 -> 100 | O69: 1 | P69: 1
B70: Nombre de logements de type 4 | G70: =Calcul2!D180 -> 150 | O70: 1 | P70: 1
B71: Nombre de logements de type 5 | G71: =Calcul2!D181 -> 200 | O71: 1 | P71: 1
B72: =B35 -> Hôtellerie | G72: Consommation par chambre | O72: 0 | P72: 0
B73: Hotel 1 * | G73: ='Table ECS'!C189 -> 75 | H73: ='Table ECS'!D189 -> Litres à 60°C / chambre / jour | O73: 0 | P73: 2
B74: Hotel 2 * | G74: ='Table ECS'!C190 -> 100 | H74: ='Table ECS'!D190 -> Litres à 60°C / chambre / jour | O74: 0 | P74: 2
B75: Hotel 3 * | G75: ='Table ECS'!C191 -> 150 | H75: ='Table ECS'!D191 -> Litres à 60°C / chambre / jour | O75: 0 | P75: 2
B76: Hotel 4 * | G76: ='Table ECS'!C192 -> 200 | H76: ='Table ECS'!D192 -> Litres à 60°C / chambre / jour | O76: 0 | P76: 2
B77: =B42 -> Camping | G77: Consommation par emplacement | O77: 0 | P77: 0
B78: =B43 -> Sanitaire collectif + lavage vaisselle | G78: ='Table ECS'!C194 -> 60 | H78: ='Table ECS'!D194 -> Litres à 60°C / emplacement / jour | O78: 0 | P78: 3
B79: =B45 -> Restauration | G79: Consommation par repas | O79: 0 | P79: 0
B80: =B46 -> Type d'etablisement de restauration | G80: ='Table ECS'!C196 -> 12 | H80: ='Table ECS'!D196 -> Litres à 60°C / repas | O80: 0 | P80: 4
B81: =B47 -> Nombre de repas | G81: ='Table ECS'!C197 -> 5 | H81: ='Table ECS'!D197 -> Litres à 60°C / repas | O81: 0 | P81: 4
B82: =#REF! ->  | G82: ='Table ECS'!C198 -> 1 | H82: ='Table ECS'!D198 -> Litres à 60°C / repas | O82: 0 | P82: 4
B83: =B49 -> Santé | G83: Consommation par lit | O83: 0 | P83: 0
B84: =B50 -> Type d'etablisement de santé | G84: ='Table ECS'!C200 -> 40 | H84: ='Table ECS'!D200 -> Litres à 60°C / lit / jour | O84: 0 | P84: 5
B85: =B51 -> Nombre de lits | G85: ='Table ECS'!C201 -> 50 | H85: ='Table ECS'!D201 -> Litres à 60°C / lit / jour | O85: 0 | P85: 5
B86: =#REF! ->  | G86: ='Table ECS'!C202 -> 60 | H86: ='Table ECS'!D202 -> Litres à 60°C / lit / jour | O86: 0 | P86: 5
B87: =#REF! ->  | G87: ='Table ECS'!C203 -> 100 | H87: ='Table ECS'!D203 -> Litres à 60°C / lit / jour | O87: 0 | P87: 5
B88: =B53 -> Internat | G88: Consommation par interne | O88: 0 | P88: 0
B89: =B54 -> Nombre d'interne | G89: ='Table ECS'!C205 -> 40 | H89: ='Table ECS'!D205 -> Litres à 60°C / interne/ jour | O89: 0 | P89: 6
B90: =B56 -> Sport | G90: Consommation par pomme de douche? | O90: 0 | P90: 0
B91: =B57 -> En salle | G91: ='Table ECS'!C207 -> 25 | H91: ='Table ECS'!D207 -> Litres à 60°C / personne/ jour | O91: 0 | P91: 7
B92: =B58 -> Vestiaires / Foot / rugby | G92: ='Table ECS'!C208 -> 40 | H92: ='Table ECS'!D208 -> Litres à 60°C / personne/ jour | O92: 0 | P92: 7
O93: 1
O94: 1
B95: Couples puissance / volume ballon ECS - Production SI (semi-instantanée) & SA (semi-accumulée) | L95: Aide | O95: 1
O96: 1
O97: 1
O98: 1
O99: 1
O100: 1
O101: 1
O102: 1
O103: 1
B104: Couples puissance / volume ballon ECS - Production ECS instantanée | L104: Aide | O104: 1
B105: L'augmentation du stockage d'énergie primaire permet de diminuer la puissance du générateur | O105: 1
B106: =Calcul2!AA10 -> Température de stockage : 76 °C | O106: 1
B107: =Calcul2!AA11 -> Module(s) aguaFLOW W : VPM 40/45/2 W | O107: 1
O108: 1
O109: 1
O110: 1
O111: 1
O112: 1
O113: 1
O114: 1

Sheet Table ECS (hidden)
A3: Listes | B3: type_bat | C3: O_N | D3: répartition | E3: type_répartition | F3: profil de puisage
A4: 1 | B4: =Calcul2!A175 -> Logements collectifs | C4: OUI | D4: Journalière | E4: Constante | F4: Par defaut
A5: 2 | B5: =Calcul2!A192 -> Hôtellerie | C5: NON | D5: Mensuelle | E5: Par défaut | F5: personalisé
A6: 3 | B6: =Calcul2!B214 -> Camping | D6: Annuelle | E6: Personnalisée
A7: 4 | B7: =Calcul2!A225 -> Restauration
A8: 5 | B8: =Calcul2!A239 -> Santé
A9: 6 | B9: =Calcul2!A253 -> Internat
A10: 7 | B10: =Calcul2!A266 -> Sport
A14: Liste | B14: Liste_sante
B15: Maison de retraite
B16: Hôpital
B17: Clinique/Maternité
B18: Foyer pour handicapés
A20: Liste | B20: Liste_sport
B21: Interieur
B22: Vestiaires / Foot / rugby
C24: Répartition annelle
B25: logements | F25: restaurants
C26: par défaut * | D26: constante | G26: par défaut * | H26: constante | I26: personnalisé
B27: Janvier | C27: 1.25 | D27: 1 | F27: Janvier | G27: 0.85 | H27: 1
B28: Février | C28: 1.2 | D28: 1 | F28: Février | G28: 0.78 | H28: 1
B29: Mars | C29: 1.1 | D29: 1 | F29: Mars | G29: 0.77 | H29: 1
B30: Avril | C30: 1.05 | D30: 1 | F30: Avril | G30: 0.73 | H30: 1
B31: Mai | C31: 1 | D31: 1 | F31: Mai | G31: 0.78 | H31: 1
B32: Juin | C32: 0.8 | D32: 1 | F32: Juin | G32: 1.05 | H32: 1
B33: Juillet | C33: 0.5 | D33: 1 | F33: Juillet | G33: 1.24 | H33: 1
B34: Août | C34: 0.6 | D34: 1 | F34: Août | G34: 1.25 | H34: 1
B35: Septembre | C35: 0.9 | D35: 1 | F35: Septembre | G35: 1.28 | H35: 1
B36: Octobre | C36: 1.05 | D36: 1 | F36: Octobre | G36: 1.28 | H36: 1
B37: Novembre | C37: 1.15 | D37: 1 | F37: Novembre | G37: 1 | H37: 1
B38: Décembre | C38: 1.4 | D38: 1 | F38: Décembre | G38: 0.99 | H38: 1
B40: logements | C40: Répartition hebdomadaire et journalière
C41: semaine | D41: Samedi | E41: Dimanche
B42: de 0h à 1h | C42: 0.02 | D42: 0.06 | E42: 0.05
B43: de 1h à 2h | C43: 0.02 | D43: 0.04 | E43: 0.05
B44: de 2h à 3h | C44: 0.01 | D44: 0.02 | E44: 0.02
B45: de 3h à 4h | C45: 0.01 | D45: 0.02 | E45: 0.02
B46: de 4h à 5h | C46: 0.02 | D46: 0.01 | E46: 0.02
B47: de 5h à 6h | C47: 0.2 | D47: 0.05 | E47: 0.02
B48: de 6h à 7h | C48: 1.6 | D48: 0.35 | E48: 0.04
B49: de 7h à 8h | C49: 3.3 | D49: 1.07 | E49: 0.36
B50: de 8h à 9h | C50: 1.8 | D50: 2.21 | E50: 1.28
B51: de 9h à 10h | C51: 1.5 | D51: 2.59 | E51: 2.63
B52: de 10h à 11h | C52: 1.23 | D52: 2.63 | E52: 3.53
B53: de 11h à 12h | C53: 0.9 | D53: 1.83 | E53: 2.94
B54: de 12h à 13h | C54: 1.1 | D54: 1.5 | E54: 1.74
B55: de 13h à 14h | C55: 1.42 | D55: 1.94 | E55: 1.38
B56: de 14h à 15h | C56: 0.8 | D56: 1.72 | E56: 1.56
B57: de 15h à 16h | C57: 0.5 | D57: 1.06 | E57: 1
B58: de 16h à 17h | C58: 0.54 | D58: 0.73 | E58: 0.74
B59: de 17h à 18h | C59: 0.85 | D59: 0.89 | E59: 0.68
B60: de 18h à 19h | C60: 1.65 | D60: 1.38 | E60: 1.3
B61: de 19h à 20h | C61: 1.9 | D61: 1.34 | E61: 1.59
B62: de 20h à 21h | C62: 2.25 | D62: 1.19 | E62: 1.59
B63: de 21h à 22h | C63: 1.3 | D63: 0.6 | E63: 0.68
B64: de 22h à 23h | C64: 0.78 | D64: 0.44 | E64: 0.59
B65: de 23h à 24h | C65: 0.3 | D65: 0.33 | E65: 0.19
C66: =SUM(C42:C65) -> 24 | D66: =SUM(D42:D65) -> 24 | E66: =SUM(E42:E65) -> 24
A67: Matrice | B67: DEPARTEMENT | C67: Zone climatique | D67: département | E67: Ville
B68: 1 | C68: H1c | D68: AIN | E68: Ambérieu
B69: 2 | C69: H1a | D69: AISNE | E69: Laon
B70: 3 | C70: H1c | D70: ALLIER | E70: Vichy
B71: 4 | C71: H2d | D71: ALPES DE HAUTE PROVENCE | E71: Digne
B72: 5 | C72: H1c | D72: HAUTES ALPES | E72: Embrun
B73: 6 | C73: H3 | D73: ALPES MARITIME | E73: Nice
B74: 7 | C74: H2d | D74: ARDECHE | E74: Privas
B75: 8 | C75: H1b | D75: ARDENNES | E75: Charleville Mézières
B76: 9 | C76: H2c | D76: ARIEGE | E76: Cazaux
B77: 10 | C77: H1b | D77: AUBE | E77: Troyes
B78: 11 | C78: H3 | D78: AUDE | E78: Carcassonne
B79: 12 | C79: H2c | D79: AVEYRON | E79: Millau
B80: 13 | C80: H3 | D80: BOUCHES DU RHÔNE | E80: Marseille
B81: 14 | C81: H1a | D81: CALVADOS | E81: Caen
B82: 15 | C82: H1c | D82: CANTAL | E82: Aurillac
B83: 16 | C83: H2b | D83: CHARENTE | E83: Angoulème
B84: 17 | C84: H2b | D84: CHARENTE MARITIME | E84: La Rochelle
B85: 18 | C85: H2b | D85: CHER | E85: Bourges
B86: 19 | C86: H1c | D86: CORREZE | E86: Tulle
B87: 20 | C87: H3 | D87: CORSE | E87: Bastia
B88: 21 | C88: H1c | D88: CÔTE D'OR | E88: Dijon
B89: 22 | C89: H2a | D89: CÔTE D'ARMOR | E89: Saint Brieuc
B90: 23 | C90: H1c | D90: CREUSE | E90: Guerret
B91: 24 | C91: H2c | D91: DORDOGNE | E91: Périgueux
B92: 25 | C92: H1c | D92: DOUBS | E92: Besançon
B93: 26 | C93: H2d | D93: DRÔME | E93: Montélimar
B94: 27 | C94: H1a | D94: EURE | E94: Evreux
B95: 28 | C95: H1a | D95: EURE ET LOIR | E95: Chartres
B96: 29 | C96: H2a | D96: FINISTERE | E96: Brest
B97: 30 | C97: H3 | D97: GARD | E97: Nimes
B98: 31 | C98: H2c | D98: HAUTE GARONNE | E98: Toulouse
B99: 32 | C99: H2c | D99: GERS | E99: Auch
B100: 33 | C100: H2c | D100: GIRONDE | E100: Bordeaux
B101: 34 | C101: H3 | D101: HERAULT | E101: Montpellier
B102: 35 | C102: H2a | D102: ILLE ET VILAINE | E102: Rennes
B103: 36 | C103: H2b | D103: INDRE | E103: Chateauroux
B104: 37 | C104: H2b | D104: INDRE ET LOIRE | E104: Tours
B105: 38 | C105: H1c | D105: ISERE | E105: Grenoble
B106: 39 | C106: H1c | D106: JURA | E106: Lons le Saunier
B107: 40 | C107: H2c | D107: LANDES | E107: Mont de Marsan
B108: 41 | C108: H2b | D108: LOIR ET CHER | E108: Blois
B109: 42 | C109: H1c | D109: LOIRE | E109: Saint Etienne
B110: 43 | C110: H1c | D110: HAUTE LOIRE | E110: Le Puy-en-Velay
B111: 44 | C111: H2b | D111: LOIRE ATLANTIQUE | E111: Nantes
B112: 45 | C112: H1b | D112: LOIRET | E112: Orléans
B113: 46 | C113: H2c | D113: LOT | E113: Gourdon
B114: 47 | C114: H2c | D114: LOT ET GARONNE | E114: Agen
B115: 48 | C115: H2d | D115: LOZERE | E115: Mende
B116: 49 | C116: H2b | D116: MAINE ET LOIRE | E116: Angers
B117: 50 | C117: H2a | D117: MANCHE | E117: Saint Lô
B118: 51 | C118: H1b | D118: MARNE | E118: Reims
B119: 52 | C119: H1b | D119: HAUTE MARNE | E119: Langres
B120: 53 | C120: H2b | D120: MAYENNE | E120: Laval
B121: 54 | C121: H1b | D121: MEURTHE ET MOSELLE | E121: Nancy
B122: 55 | C122: H1b | D122: MEURTHE ET MOSELLE | E122: Bar le Duc
B123: 56 | C123: H2a | D123: MORBIHAN | E123: Vannes
B124: 57 | C124: H1b | D124: MOSELLE | E124: Metz
B125: 58 | C125: H1b | D125: NIEVRE | E125: Nevers
B126: 59 | C126: H1a | D126: NORD | E126: Valenciennes
B127: 60 | C127: H1a | D127: OISE | E127: Beauvais
B128: 61 | C128: H1a | D128: ORNE | E128: Alençon
B129: 62 | C129: H1a | D129: NORD | E129: Arras
B130: 63 | C130: H1c | D130: PUY DE DOME | E130: Clermont-Fd
B131: 64 | C131: H2c | D131: PYRENEES ATLANTIQUES | E131: Biarritz
B132: 65 | C132: H2c | D132: HAUTES PYRENEES | E132: Tarbes
B133: 66 | C133: H3 | D133: PYRENEES ORIENTALES | E133: Perpignan
B134: 67 | C134: H1b | D134: BAS RHIN | E134: Strasbourg
B135: 68 | C135: H1b | D135: HAUT RHIN | E135: Mulhouse
B136: 69 | C136: H1c | D136: RHONE | E136: Lyon
B137: 70 | C137: H1b | D137: HAUTE SAÔNE | E137: Vesoul
B138: 71 | C138: H1c | D138: SAÔNE ET LOIRE | E138: Macon
B139: 72 | C139: H2b | D139: SARTHE | E139: Le Mans
B140: 73 | C140: H1c | D140: SAVOIE | E140: Chambéry
B141: 74 | C141: H1c | D141: HAUTE SAVOIE | E141: Annecy
B142: 75 | C142: H1a | D142: PARIS | E142: Paris
B143: 76 | C143: H1a | D143: SEINE MARITIME | E143: Rouen
B144: 77 | C144: H1a | D144: SEINE ET MARNE | E144: Meulin
B145: 78 | C145: H1a | D145: YVELINES | E145: Saint Quentin
B146: 79 | C146: H2b | D146: DEUX SEVRES | E146: Niort
B147: 80 | C147: H1a | D147: SOMME | E147: Amiens
B148: 81 | C148: H2c | D148: TARN | E148: Albi
B149: 82 | C149: H2c | D149: TARN ET GARONNE | E149: Montauban
B150: 83 | C150: H3 | D150: VAR | E150: Toulon
B151: 84 | C151: H2d | D151: VAUCLUSE | E151: Avignon
B152: 85 | C152: H2b | D152: VENDEE | E152: La Roche sur Yon
B153: 86 | C153: H2b | D153: VIENNE | E153: Poitiers
B154: 87 | C154: H1c | D154: HAUTE VIENNE | E154: Limoges
B155: 88 | C155: H1b | D155: VOSGES | E155: Epinal
B156: 89 | C156: H1b | D156: YONNE | E156: Auxerre
B157: 90 | C157: H1b | D157: TERRITOIRE DE BELFORT | E157: Belfort
B158: 91 | C158: H1a | D158: ESSONNE | E158: idf
B159: 92 | C159: H1a | D159: HAUTS DE SEINE | E159: idf
B160: 93 | C160: H1a | D160: SEINE ST DENIS | E160: idf
B161: 94 | C161: H1a | D161: VAL DE MARNE | E161: idf
B162: 95 | C162: H1a | D162: VAL D'OISE | E162: idf
C164: Température eau froide (matrice Tef)
C165: Janvier | D165: Février | E165: Mars | F165: Avril | G165: Mai | H165: Juin | I165: Juillet | J165: Août | K165: Septembre | L165: Octobre | M165: Novembre | N165: Décembre | O165: Tmin
B166: H1a | C166: 5.7 | D166: 5.7 | E166: 7 | F166: 9.2 | G166: 11.8 | H166: 14 | I166: 15.3 | J166: 15.3 | K166: 14 | L166: 11.8 | M166: 9.2 | N166: 7 | O166: =MIN(C166:N166) -> 5.7
B167: H1b | C167: 5.7 | D167: 5.7 | E167: 7 | F167: 9.2 | G167: 11.8 | H167: 14 | I167: 15.3 | J167: 15.3 | K167: 14 | L167: 11.8 | M167: 9.2 | N167: 7 | O167: =MIN(C167:N167) -> 5.7
B168: H1c | C168: 5.7 | D168: 5.7 | E168: 7 | F168: 9.2 | G168: 11.8 | H168: 14 | I168: 15.3 | J168: 15.3 | K168: 14 | L168: 11.8 | M168: 9.2 | N168: 7 | O168: 5.7
B169: H2a | C169: 7.2 | D169: 7.2 | E169: 8.5 | F169: 10.7 | G169: 13.3 | H169: 15.5 | I169: 16.8 | J169: 16.8 | K169: 15.5 | L169: 13.3 | M169: 10.7 | N169: 8.5 | O169: 7.2
B170: H2b | C170: 7.2 | D170: 7.2 | E170: 8.5 | F170: 10.7 | G170: 13.3 | H170: 15.5 | I170: 16.8 | J170: 16.8 | K170: 15.5 | L170: 13.3 | M170: 10.7 | N170: 8.5 | O170: 7.2
B171: H2c | C171: 7.2 | D171: 7.2 | E171: 8.5 | F171: 10.7 | G171: 13.3 | H171: 15.5 | I171: 16.8 | J171: 16.8 | K171: 15.5 | L171: 13.3 | M171: 10.7 | N171: 8.5 | O171: 7.2
B172: H2d | C172: 7.2 | D172: 7.2 | E172: 8.5 | F172: 10.7 | G172: 13.3 | H172: 15.5 | I172: 16.8 | J172: 16.8 | K172: 15.5 | L172: 13.3 | M172: 10.7 | N172: 8.5 | O172: 7.2
B173: H3 | C173: 9.7 | D173: 9.7 | E173: 11 | F173: 13.2 | G173: 15.8 | H173: 18 | I173: 19.3 | J173: 19.3 | K173: 18 | L173: 15.8 | M173: 13.2 | N173: 11 | O173: 9.7
C175: Code postal | D175: ='Données d''entrée'!H11 -> 59490
C176: Zone climatique | D176: =VLOOKUP(VALUE(LEFT('Données d''entrée'!H11,LEN('Données d''entrée'!H11)-3)),departement,2,FALSE) -> H1a | E176: =VLOOKUP(D176,B164:O173,14,FALSE) -> 5.7 | F176: Tmin
A178: Liste | B178: Vol_ballon
B179: 2000
B180: 1500
B181: 1000
B182: 750
B183: 500
B184: 400
B185: 300
B187: Matrice volume ECS / hotel
A188: Matrice | B188: Vol_ECS_Hotel | C188: conso à 60 °C | D188: (source consommation : AICVF - 2004)
B189: Hôtel 1 * | C189: 75 | D189: Litres à 60°C / chambre / jour
B190: Hôtel 2 * | C190: 100 | D190: Litres à 60°C / chambre / jour
B191: Hôtel 3 * | C191: 150 | D191: Litres à 60°C / chambre / jour
B192: Hôtel 4 * | C192: 200 | D192: Litres à 60°C / chambre / jour
B193: Vol_ECS_Camping
B194: Sanitaire collectif + lavage vaisselle | C194: 60 | D194: Litres à 60°C / emplacement / jour
A195: Matrice & liste | B195: Vol_ECS_Restauration
B196: Traditionnelle (50 à 150 repas par jour) | C196: 12 | D196: Litres à 60°C / repas
B197: Commerciale (500 repas par jour) | C197: 5 | D197: Litres à 60°C / repas
B198: Cuisine centrale (5000 repas par jour) | C198: 1 | D198: Litres à 60°C / repas
B199: Vol_ECS_Santé
B200: Maison de retraite | C200: 40 | D200: Litres à 60°C / lit / jour
B201: Hôpital | C201: 50 | D201: Litres à 60°C / lit / jour
B202: Clinique/Maternité | C202: 60 | D202: Litres à 60°C / lit / jour
B203: Foyer pour handicapés | C203: 100 | D203: Litres à 60°C / lit / jour
B204: Vol_ECS_Internat
B205: Nombre d'interne | C205: 40 | D205: Litres à 60°C / interne/ jour
B206: Vol_ECS_Sport
B207: En salle | C207: 25 | D207: Litres à 60°C / personne/ jour
B208: Vestiaires / Foot / Rugby | C208: 40 | D208: Litres à 60°C / personne/ jour
A211: Liste des T° primaire utilisable | B211: Liste_Tem_Cons
B212: =IF(Calcul2!$C45<45,"",45) -> 45
B213: =IF(Calcul2!$C$45<50,"",50) -> 50
B214: =IF(Calcul2!$C$45<55,"",55) -> 55
... 21 more rows

Sheet Guide choix
A1: Guide de choix (source Guide collectif VAILLANT)

Sheet Calcul2 (hidden)
X1: Affichage des solutions | AA1: Solutions | AB1: Solution 1 | AC1: Solution 2 | AD1: Solution 3 | AE1: Solution 4
B2: Semi-instantané | Y2: Affichage uniSTOR | AA2: Type de ballon | AB2: =IF(ISERROR(INDEX(INDIRECT($AB$23),1,1))=TRUE,"",INDEX(INDIRECT($AB$23),1,1)) -> VIHR 400 | AC2: =IF(ISERROR(INDEX(INDIRECT($AB$23),1,2))=TRUE,"",INDEX(INDIRECT($AB$23),1,2)) -> VIHR 500 | AD2: =IF(ISERROR(INDEX(INDIRECT($AB$23),1,3))=TRUE,"",INDEX(INDIRECT($AB$23),1,3)) -> VIHR 750 | AE2: =IF(ISERROR(INDEX(INDIRECT($AB$23),1,4))=TRUE,"",INDEX(INDIRECT($AB$23),1,4)) -> VIHR 1000
B3: N | C3: N= Σni * Ni | D3: Nb de logement standard / Méthode Qualitel = T3 | AA3: Puissance minimum du générateur dédiée à l'ECS (kW) | AB3: =IF(ISERROR(INDEX(INDIRECT($AB$23),2,1))=TRUE,"",INDEX(INDIRECT($AB$23),2,1)) -> 26.28288239 | AC3: =IF(ISERROR(INDEX(INDIRECT($AB$23),2,2))=TRUE,"",INDEX(INDIRECT($AB$23),2,2)) -> 23.38183238 | AD3: =IF(ISERROR(INDEX(INDIRECT($AB$23),2,3))=TRUE,"",INDEX(INDIRECT($AB$23),2,3)) -> 15.46701117 | AE3: =IF(ISERROR(INDEX(INDIRECT($AB$23),2,4))=TRUE,"",INDEX(INDIRECT($AB$23),2,4)) -> 11.43076769
B4: s | C4: 0.17 +(N-1) ^(-1/2) | D4: Simultanéité | AA4: Choix de la solution
B5: Vph | C5: 0.75*150*N | D5: Volume de pointe pluri-horaire
B6: Tph | C6: 5*N^0.905/(15+N^0.92) | D6: Temps pluri-horaire
B7: Vpm | C7: 50*N*s | D7: Volume de pointe de 10 minutes
B8: Tpm | C8: =1/6 -> 0.1666666667 | D8: Temps 10 min
B9: Puissance besoin ECS | C9: (1.16/1000)*(Vpm-Vsu)*(Temp ECS - Temp EF)/Tpm | Y9: Affichage allSTOR
B10: Consommation | C10: Somme ni * Ci | AA10: =IF(ISERROR(D164)=TRUE,"",IF(D164>C45,"Le Delta T entre la température primaire et la température de consigne est trop faible pour proposer une solution","Température de stockage : "&ROUNDUP(D164,0)&" °C")) -> Température de stockage : 76 °C
B11: Volume ballon | AA11: =IF(ISERROR(D163)=TRUE,"",IF(D164>C45,"","Module(s) aguaFLOW W : "&IF(ISERROR(D163)=TRUE,"",D163))) -> Module(s) aguaFLOW W : VPM 40/45/2 W | AB11: =D163 -> VPM 40/45/2 W
B12: Semi-accumulé | C12: ='Données d''entrée'!#REF! -> 
B13: Volume ballon | AA13: Solutions | AB13: Solution 5 | AC13: Solution 6 | AD13: Solution 7 | AE13: Solution 8
B14: Volume du ballon retenue | AA14: Ballon | AB14: =IF(ISERROR(D161)=TRUE,"",IF(D164>C45,"",D161)) -> VPS 500 | AC14: =IF(ISERROR(E161)=TRUE,"",IF(D164>C45,"",E161)) -> VPS 800 | AD14: =IF(ISERROR(F161)=TRUE,"",IF(D164>C45,"",F161)) -> VPS 1000 | AE14: =IF(ISERROR(G161)=TRUE,"",IF(D164>C45,"",G161)) -> 
B15: Puissance besoin ECS | AA15: Puissance minimum du générateur dédiée à l'ECS (kW) | AB15: =IF(ISERROR(D162)=TRUE,"",IF(D164>C45,"",D162)) -> 26.96420377 | AC15: =IF(ISERROR(E162)=TRUE,"",IF(D164>C45,"",E162)) -> 19.89415472 | AD15: =IF(ISERROR(F162)=TRUE,"",IF(D164>C45,"",F162)) -> 15.36144034 | AE15: =IF(ISERROR(G162)=TRUE,"",IF(D164>C45,"",G162)) -> 
B16: Tpm | D16: Durée de point de 10 min | AA16: Choix de la solution
B17: Vpm | D17: Volume puisé maximal
B18: Consommation
B19: Simultanéité | C19: 0.17 +(N-1) ^(-1/2)
B20: Nb de logement standard | X20: Recherche où trouver le résultat des couples puissance/volume en fonction de la température du primaire
B21: Dimensionnement | C21: ='Données d''entrée'!#REF! -> 
B22: Qp | C22: (1.16/1000)*Vp*(Tgen-Tef) | D22: Quantité d'energie souhaité | AA22: N° de ligne | AB22: =VLOOKUP(C45,Y25:Z27,2,FALSE) -> 3
B23: Tgen | D23: Température de l'ECS | AA23: Adresse de la matrice | AB23: =INDEX(AB25:AB27,AB22,1) -> D115:G116
B24: Tef | D24: Temp Eau froide | Y24: N° de ligne | AA24: Matrice des adresse des resultats
B25: Qsu | D25: Energie en SI ou SA | Y25: 60 | Z25: 1 | AA25: en fonction de la température de primaire 60 °C | AB25: ="D"&ROW(D91)&":G"&ROW(G92) -> D91:G92
B26: Vsu | D26: Volume stocké utile en SI ou SA | Y26: 70 | Z26: 2 | AA26: en fonction de la température de primaire 70 °C | AB26: ="D"&ROW(D103)&":G"&ROW(G104) -> D103:G104
B27: P | C27: Pdisp + (1,16/1000)*(Vpm-Vsu)*(Tgen-Tef)/Tpm | D27: Puissance de production en Semi Instantané | Y27: 80 | Z27: 3 | AA27: en fonction de la température de primaire 80 °C | AB27: ="D"&ROW(D115)&":G"&ROW(G116) -> D115:G116
B28: Vpm | D28: Volume puisé en litre à Tgen durant tpm
B29: Vsu | D29: Volume stocké en litre à Tgen
B30: Tef | D30: Température EF
B31: Tpm | D31: Durée de pointe de conso extreme soit 1/6 h | X31: Recherche où trouver le résultat Vpm … en fonction du type d'établissement
B32: Pdisp | D32: Puissance nécessaire au maintien de boucle en température
B33: P | C33: Pdisp + (1,16/1000)*(Vph-Vsu)*(Tgen-Tef)/Tph | AA33: N° de colonne | AB33: =HLOOKUP(C44,$AB$40:$AH$41,2,FALSE) -> 4
AA34: Adresss de Vpm | AB34: =INDEX($AB$42:$AH$47,AC34,$AB$33) -> 232.3452723 | AC34: 1
B35: Volume de transition entre semi-instantané et semi-accumulé | AA35: Adresss de Tpm | AB35: =INDEX($AB$42:$AH$47,AC35,$AB$33) -> 0.1666666667 | AC35: 2
B36: VSI/SA = | C36: (Vh x t10-V10 x th)/(0,8 x t10 - 0,6 x th) | AA36: Adresss de Vph | AB36: 990 | AC36: 3
B37: si V < VSI/SA alors P = PSI sinon P = PSA | AA37: Adresss de Tph | AB37: 1.598013406 | AC37: 4
AA38: Adresse de s | AB38: 0.1666666667 | AC38: 5
B39: Volume de transition entre semi-accumulé et accumulé | AA39: Adresse de C | AB39: 550 | AC39: 6
B40: c'est la capacité seuil telle que PSA = PA | AA40: Matrice des adresse des resultats | AB40: Camping | AC40: Hôtellerie | AD40: Internat | AE40: Logements collectifs | AF40: Restauration | AG40: Santé | AH40: Sport
B41: VSA/A = | C41: 1,25 x (Vh - VA x th/tc) | AA41: en fonction du profils de l'établissement | AB41: 1 | AC41: 2 | AD41: 3 | AE41: 4 | AF41: 5 | AG41: 6 | AH41: 7
AA42: Vpm | AB42: =D220 -> 31.25 | AC42: =D207 -> 30.6122449 | AD42: =D261 -> 0 | AE42: =D187 -> 232.3452723 | AF42: =D234 -> 33.33333333 | AG42: =D248 -> 31.25 | AH42: =D275 -> 0
B43: Rappel de données d'entrées communes | AA43: Tpm | AB43: =D221 -> 0.1666666667 | AC43: =D208 -> 0.1666666667 | AD43: =D262 -> 0.1666666667 | AE43: =D188 -> 0.1666666667 | AF43: =D235 -> 0.1666666667 | AG43: =D249 -> 0.1666666667 | AH43: =D276 -> 0.1666666667
A44: Données d'entrées | B44: Profils de l'établissement | C44: ='Données d''entrée'!G26 -> Logements collectifs | AA44: Vph | AB44: =D222 -> 2812.5 | AC44: =D209 -> 5625 | AD44: =D263 -> 0 | AE44: =D189 -> 990 | AF44: =D236 -> 1125 | AG44: =D250 -> 2812.5 | AH44: =D277 -> 0
A45: Données d'entrées | B45: Température primaire | C45: ='Données d''entrée'!G60 -> 80 | AA45: Tph | AB45: =D223 -> 2.682275849 | AC45: =D210 -> 3.343429559 | AD45: =D264 -> 0 | AE45: =D190 -> 1.598013406 | AF45: =D237 -> 1.7230007 | AG45: =D251 -> 2.682275849 | AH45: =D278 -> 0
A46: Données d'entrées | B46: Température de consigne ECS | C46: ='Données d''entrée'!G61 -> 60 | AA46: s | AB46: =D219 -> 0.025 | AC46: =D206 -> 0.01224489796 | AD46: =D260 -> 1 | AE46: =D188 -> 0.1666666667 | AF46: =D233 -> 0.06666666667 | AG46: =D247 -> 0.025 | AH46: =D276 -> 0.1666666667
B47: Selection de la solution | C47: ='Données d''entrée'!Q2 -> 1 | AA47: C | AB47: =C217 -> 300 | AC47: =C203 -> 3000 | AD47: =C258 -> 0 | AE47: =C183 -> 550 | AF47: =C231 -> 120 | AG47: =C245 -> 1000 | AH47: =C272 -> 0
A48: Données d'entrées | B48: Donnée commune
A49: Données d'entrées | B49: Temp EF | C49: ='Table ECS'!E176 -> 5.7
A50: Calculs | B50: Donnée ballon uniSTOR
A51: Calculs | B51: Type de ballon | D51: VIHR 300 | E51: VIHR 400 | F51: VIHR 500 | G51: VIHR 750 | H51: VIHR 1000 | I51: VIHR 1500 | J51: VIHR 2000 | K51: VIHR 1000 + VIHR 1500 | L51: 2x VIHR 1500 | M51: VIHR 1500 + VIHR 2000 | N51: 2x VIHR 2000 | X51: Recherche la solution choisi manuellement
A52: Calculs | B52: Volume ballon | D52: 295 | E52: 404 | F52: 496 | G52: 747 | H52: 875 | I52: 1342 | J52: 1909 | K52: =H52+I52 -> 2217 | L52: =I52*2 -> 2684 | M52: =I52+J52 -> 3251 | N52: =J52*2 -> 3818 | AA52: Determination de la solution choisi | AB52: Solutions | AC52: Ballon : | AD52: =INDEX(AB53:AB60,C47,1) -> VIHR 400 | AE52: Données de sorties de la feuille
A53: Calculs | B53: Caractéristique ballons * Guide VGF | AB53: =AB2 -> VIHR 400 | AC53: auroFLOW : | AD53: =IF(C47>4,AB61,"") ->  | AE53: Données de sorties de la feuille
A54: Calculs | B54: Temp Primaire | D54: 60 | AB54: =AC2 -> VIHR 500
A55: Calculs | B55: Puissance échangeur pour soutirage 45°C | C55: 60/45/10 °C | D55: 46 | E55: 46 | F55: 62 | G55: 34 | H55: 40 | I55: 51 | J55: 62 | K55: =+H55+I55 -> 91 | L55: =+I55*2 -> 102 | M55: =+J55+I55 -> 113 | N55: =+J55*2 -> 124 | P55: Montage en parallèle pour les ballons | AB55: =AD2 -> VIHR 750
A56: Calculs | B56: Puissance échangeur pour soutirage 60°C | C56: 60/60/10 °C | D56: - | E56: - | F56: - | G56: 46 | H56: 55 | I56: 69 | J56: 84 | K56: =+H56+I56 -> 124 | L56: =+I56*2 -> 138 | M56: =+J56+I56 -> 153 | N56: =+J56*2 -> 168 | P56: Montage en parallèle pour les ballons | AB56: =AE2 -> VIHR 1000
A57: Calculs | B57: Temp Primaire | D57: 70 | AB57: =Calcul2!AB14 -> VPS 500
A58: Calculs | B58: Puissance échangeur pour soutirage 45°C | C58: 70/45/10 °C | D58: 38 | E58: 38 | F58: 48 | G58: 50 | H58: 59 | I58: 74 | J58: 90 | K58: =+H58+I58 -> 133 | L58: =+I58*2 -> 148 | M58: =+J58+I58 -> 164 | N58: =+J58*2 -> 180 | P58: "-" Elements manquants | AB58: =Calcul2!AC14 -> VPS 800
A59: Calculs | B59: Puissance échangeur pour soutirage 60°C | C59: 70/60/10 °C | D59: 28 | E59: 28 | F59: 35 | G59: 41 | H59: 48 | I59: 60 | J59: 73 | K59: =+H59+I59 -> 108 | L59: =+I59*2 -> 120 | M59: =+J59+I59 -> 133 | N59: =+J59*2 -> 146 | P59: Hypothèses de puissance | AB59: =Calcul2!AD14 -> VPS 1000
A60: Calculs | B60: Temp Primaire | D60: 80 | AB60: =Calcul2!AE14 -> 
A61: Calculs | B61: Puissance échangeur pour soutirage 45°C | C61: 80/45/10 °C | D61: 50 | E61: 50 | F61: 63 | G61: 65 | H61: 77 | I61: 97 | J61: 118 | K61: =+H61+I61 -> 174 | L61: =+I61*2 -> 194 | M61: =+J61+I61 -> 215 | N61: =+J61*2 -> 236 | P61: Montage en parallèle pour les ballons | AB61: =Calcul2!AB11 -> VPM 40/45/2 W
A62: Calculs | B62: Puissance échangeur pour soutirage 60°C | C62: 80/60/10 °C | D62: 41 | E62: 41 | F62: 51 | G62: 54 | H62: 63 | I62: 79 | J62: 96 | K62: =+H62+I62 -> 142 | L62: =+I62*2 -> 158 | M62: =+J62+I62 -> 175 | N62: =+J62*2 -> 192 | P62: Hypothèses de puissance
A63: Calculs | B63: Système semi-instantané - Puissance besoin ECS
A64: Calculs | B64: Volume stocké utile (Vsu) = 0,6 x Volume réel ballon | D64: =0.6*D52 -> 177 | E64: 242.4 | F64: 297.6 | G64: 448.2 | H64: 525 | I64: 805.2 | J64: 1145.4 | K64: 1330.2 | L64: 1610.4 | M64: 1950.6 | N64: 2290.8 | P64: =0,6*D52
A65: Calculs | B65: Vpm | D65: =AB34 -> 232.3452723 | P65: =INDEX(INDIRECT($AB$19);1;1)
A66: Calculs | B66: Tpm | D66: =AB35 -> 0.1666666667 | P66: =INDEX(INDIRECT($AB$18);1;1)
A67: Calculs | B67: Puissance besoin ECS | C67: =1,16 / 1000 * (Vpm - Vsu)*(TECS - TEF) / Tpm | D67: =(1.16/1000)*($D$65-D64)*($C$46-$C$49)/$D$66 -> 20.91652807 | E67: -3.799963134 | F67: -24.66158873 | G67: -81.57754553 | H67: -110.6024159 | I67: -216.4978415 | J67: -345.0689471 | K67: -414.9100415 | L67: -520.8054671 | M67: -649.3765727 | N67: -777.9476783
A68: Calculs | B68: Système semi-accumulé - Puissance besoin ECS
A69: Calculs | B69: Volume stocké utile (Vsu) = 0,6 x Volume réel ballon | D69: =0.8*D52 -> 236 | E69: =0.8*E52 -> 323.2 | F69: 396.8 | G69: 597.6 | H69: 700 | I69: 1073.6 | J69: 1527.2 | K69: 1773.6 | L69: 2147.2 | M69: 2600.8 | N69: 3054.4 | P69: =0,8*D52
A70: Calculs | B70: Vph | D70: =AB36 -> 990 | P70: =INDEX(INDIRECT($AB$20);1;1)
A71: Calculs | B71: Tph | D71: =AB37 -> 1.598013406 | P71: =INDEX(INDIRECT($AB$21);1;1)
A72: Calculs | B72: Puissance besoin ECS | C72: =1,16 / 1000 * (Vph - Vsu)*(TECS - TEF) / Tph | D72: =1.16/1000*($D$70-D69)*($C$46-$C$49)/$D$71 -> 29.71999598 | E72: =1.16/1000*($D$70-E69)*($C$46-$C$49)/$D$71 -> 26.28288239 | F72: 23.38183238 | G72: 15.46701117 | H72: 11.43076769 | I72: -3.295214409 | J72: -21.17451173 | K72: -30.88672261 | L72: -45.61270471 | M72: -63.49200203 | N72: -81.37129934
A73: Calculs | B73: Limite entre SI & SA
A74: Calculs | B74: Volume de transition = Vsutr | C74: =(Vpm*Tph-Vph*Tpm)/(Tph-Tpm)
A75: Calculs | B75: Vsutr | D75: =(D65*D71-D70*D66)/(D71-D66) -> 144.1236105 | E75: litres à 60°C
B76: si V < Vsutr alors P = PSI sinon P = PSA
A77: modif gilles le 29/07 | B77: P = | D77: =IF(D52<$D$75,D67,D72) -> 29.71999598 | E77: 26.28288239 | F77: 23.38183238 | G77: 15.46701117 | H77: 11.43076769 | I77: -3.295214409 | J77: -21.17451173 | K77: -30.88672261 | L77: -45.61270471 | M77: -63.49200203 | N77: -81.37129934
B78: Si la puissance > 0 réponse VRAI | D78: =D77>0 -> TRUE | E78: =E77>0 -> TRUE | F78: TRUE | G78: TRUE | H78: TRUE | I78: FALSE | J78: FALSE | K78: FALSE | L78: FALSE | M78: FALSE | N78: FALSE
A79: Calculs | B79: Puissance de transition = Ptr | C79: =pertes + 1.16/1000*(Vph-Vpm)*(Temp consigne - Temp EF)/(Tph-Tpm)
A80: Calculs | B80: Ptr | D80: =(1.16/1000)*(D70-D65)*(C46-C49)/(D71-D66) -> 33.3414362 | E80: kW
A81: Calculs | B81: Couple besoins / puissance
A82: Calculs | B82: =B54 -> Temp Primaire | D82: =D54 -> 60
A83: Calculs | B83: Si Vpm < Vstockage utile | D83: =IF($D$65<D$64,TRUE,FALSE) -> FALSE | E83: TRUE | F83: TRUE | G83: TRUE | H83: TRUE | I83: TRUE | J83: TRUE | K83: TRUE | L83: TRUE | M83: TRUE | N83: TRUE | P83: =SI($D$65<D$50;VRAI;FAUX)
A84: Calculs | B84: Si Pbesoin ECS < P échangeur soutirage 60°C | D84: =AND(D$56<>"-",D$77<D$56) -> FALSE | E84: =AND(E$56<>"-",E$77<E$56,E77>0) -> FALSE | F84: FALSE | G84: TRUE | H84: TRUE | I84: FALSE | J84: FALSE | K84: FALSE | L84: FALSE | M84: FALSE | N84: FALSE | P84: =ET(D57<>"-";D76<D57;E76>0)
A85: Calculs | B85: Si les solutions sont VRAI | D85: =AND(D83=TRUE,D84=TRUE,D$78=TRUE) -> FALSE | E85: =AND(E83=TRUE,E84=TRUE,E$78=TRUE) -> FALSE | F85: FALSE | G85: TRUE | H85: TRUE | I85: FALSE | J85: FALSE | K85: FALSE | L85: FALSE | M85: FALSE | N85: FALSE | P85: =OU(ET(D85=VRAI;D86=VRAI);ET(D79=VRAI;D87=VRAI))
A86: Calculs | B86: Index | D86: 1 | E86: 2 | F86: 3 | G86: 4 | H86: 5 | I86: 6 | J86: 7 | K86: 8 | L86: 9 | M86: 10 | N86: 11
A87: Calculs
A88: Calculs | B88: Primaire à 60°C | D88: Solution 1 | E88: Solution 2 | F88: Solution 3 | G88: Solution 4
A89: Calculs | D89: =IFERROR(D90,1) -> 4 | E89: =D89+1 -> 5 | F89: =E89+1 -> 6 | G89: =F89+1 -> 7 | P89: compteur
A90: Calculs | D90: =IF(ISERROR(HLOOKUP(TRUE,D85:N86,2,FALSE))=TRUE,FALSE,HLOOKUP(TRUE,D85:N86,2,FALSE)) -> 4 | E90: =IF(E89>=11,FALSE,IF(INDEX($D85:$N85,1,E89)=TRUE,INDEX($D86:$N86,1,E89),FALSE)) -> 5 | F90: =IF(F89>=11,FALSE,IF(INDEX($D85:$N85,1,F89)=TRUE,INDEX($D86:$N86,1,F89),FALSE)) -> FALSE | G90: =IF(G89>=11,FALSE,IF(INDEX($D85:$N85,1,G89)=TRUE,INDEX($D86:$N86,1,G89),FALSE)) -> FALSE | P90: compteur
A91: Calculs | C91: Type de ballon | D91: =IF(D90<>FALSE,INDEX($D$51:$N$51,1,D90),"") -> VIHR 750 | E91: =IF(E90<>FALSE,INDEX($D$51:$N$51,1,E90),"") -> VIHR 1000 | F91: =IF(F90<>FALSE,INDEX($D$51:$N$51,1,F90),"") ->  | G91: =IF(G90<>FALSE,INDEX($D$51:$N$51,1,G90),"") -> 
A92: Calculs | C92: Puissance minimum du générateur pour soutirage 60°C | D92: =IF(D90<>FALSE,INDEX($D77:$N77,1,D90),"") -> 15.46701117 | E92: =IF(E90<>FALSE,INDEX($D77:$N77,1,E90),"") -> 11.43076769 | F92: =IF(F90<>FALSE,INDEX($D77:$N77,1,F90),"") ->  | G92: =IF(G90<>FALSE,INDEX($D77:$N77,1,G90),"") -> 
A93: Calculs
A94: Calculs | B94: =B57 -> Temp Primaire | D94: =D57 -> 70
A95: Calculs | B95: Si Vpm < Vstockage utile | D95: =IF($D$65<D$64,TRUE,FALSE) -> FALSE | E95: TRUE | F95: TRUE | G95: TRUE | H95: TRUE | I95: TRUE | J95: TRUE | K95: TRUE | L95: TRUE | M95: TRUE | N95: TRUE | P95: =SI($D$65<L$50;VRAI;FAUX)
A96: Calculs | B96: Si Pbesoin ECS < P échangeur soutirage 60°C | D96: =AND(D$59<>"-",D$77<D$59) -> FALSE | E96: =AND(E$59<>"-",E$77<E$59,E77>0) -> TRUE | F96: TRUE | G96: TRUE | H96: TRUE | I96: FALSE | J96: FALSE | K96: FALSE | L96: FALSE | M96: FALSE | N96: FALSE | P96: =ET(L60<>"-";L67>0;L67<L60;E76>0)
A97: Calculs | B97: Si les solutions sont VRAI | D97: =AND(D95=TRUE,D96=TRUE,D$78=TRUE) -> FALSE | E97: =AND(E95=TRUE,E96=TRUE,E$78=TRUE) -> TRUE | F97: =AND(F95=TRUE,F96=TRUE,F$78=TRUE) -> TRUE | G97: =AND(G95=TRUE,G96=TRUE,G$78=TRUE) -> TRUE | H97: =AND(H95=TRUE,H96=TRUE,H$78=TRUE) -> TRUE | I97: =AND(I95=TRUE,I96=TRUE,I$78=TRUE) -> FALSE | J97: =AND(J95=TRUE,J96=TRUE,J$78=TRUE) -> FALSE | K97: =AND(K95=TRUE,K96=TRUE,K$78=TRUE) -> FALSE | L97: =AND(L95=TRUE,L96=TRUE,L$78=TRUE) -> FALSE | M97: =AND(M95=TRUE,M96=TRUE,M$78=TRUE) -> FALSE | N97: =AND(N95=TRUE,N96=TRUE,N$78=TRUE) -> FALSE | P97: =OU(ET(L107=VRAI;L108=VRAI);ET(L109=VRAI;L107=VRAI))
A98: Calculs | B98: Index | D98: 1 | E98: 2 | F98: 3 | G98: 4 | H98: 5 | I98: 6 | J98: 7 | K98: 8 | L98: 9 | M98: 10 | N98: 11
A99: Calculs
A100: Calculs | B100: Primaire à 70°C | D100: Solution 1 | E100: Solution 2 | F100: Solution 3 | G100: Solution 4
A101: Calculs | D101: =IFERROR(D102,1) -> 2 | E101: =D101+1 -> 3 | F101: =E101+1 -> 4 | G101: =F101+1 -> 5 | P101: compteur
A102: Calculs | D102: =IF(ISERROR(HLOOKUP(TRUE,D97:N98,2,FALSE))=TRUE,FALSE,HLOOKUP(TRUE,D97:N98,2,FALSE)) -> 2 | E102: =IF(E101>=11,FALSE,IF(INDEX($D97:$N97,1,E101)=TRUE,INDEX($D98:$N98,1,E101),FALSE)) -> 3 | F102: =IF(F101>=11,FALSE,IF(INDEX($D97:$N97,1,F101)=TRUE,INDEX($D98:$N98,1,F101),FALSE)) -> 4 | G102: =IF(G101>=11,FALSE,IF(INDEX($D97:$N97,1,G101)=TRUE,INDEX($D98:$N98,1,G101),FALSE)) -> 5 | P102: compteur
A103: Calculs | C103: Type de ballon | D103: =IF(D102<>FALSE,INDEX($D$51:$N$51,1,D102),"") -> VIHR 400 | E103: =IF(E102<>FALSE,INDEX($D$51:$N$51,1,E102),"") -> VIHR 500 | F103: =IF(F102<>FALSE,INDEX($D$51:$N$51,1,F102),"") -> VIHR 750 | G103: =IF(G102<>FALSE,INDEX($D$51:$N$51,1,G102),"") -> VIHR 1000
A104: Calculs | C104: Puissance minimum du générateur pour soutirage 60°C | D104: =IF(D102<>FALSE,INDEX($D77:$N77,1,D102),"") -> 26.28288239 | E104: =IF(E102<>FALSE,INDEX($D77:$N77,1,E102),"") -> 23.38183238 | F104: =IF(F102<>FALSE,INDEX($D77:$N77,1,F102),"") -> 15.46701117 | G104: =IF(G102<>FALSE,INDEX($D77:$N77,1,G102),"") -> 11.43076769
A105: Calculs
A106: Calculs | B106: =B60 -> Temp Primaire | D106: =D60 -> 80
A107: Calculs | B107: Si Vpm < Vstockage utile | D107: =IF($D$65<D$64,TRUE,FALSE) -> FALSE | E107: TRUE | F107: TRUE | G107: TRUE | H107: TRUE | I107: TRUE | J107: TRUE | K107: TRUE | L107: TRUE | M107: TRUE | N107: TRUE | P107: =SI($D$65<L$50;VRAI;FAUX)
A108: Calculs | B108: Si Pbesoin ECS SI < Péchangeur soutirage 60°C | D108: =AND(D$62<>"-",D$77<D$62) -> TRUE | E108: =AND(E$62<>"-",E$77<E$62,E77>0) -> TRUE | F108: TRUE | G108: TRUE | H108: TRUE | I108: FALSE | J108: FALSE | K108: FALSE | L108: FALSE | M108: FALSE | N108: FALSE | P108: =ET(L63<>"-";L67>0;L67<L63;E76>0)
A109: Calculs | B109: Si les solutions sont VRAI | D109: =AND(D107=TRUE,D108=TRUE,D$78=TRUE) -> FALSE | E109: =AND(E107=TRUE,E108=TRUE,E$78=TRUE) -> TRUE | F109: =AND(F107=TRUE,F108=TRUE,F$78=TRUE) -> TRUE | G109: =AND(G107=TRUE,G108=TRUE,G$78=TRUE) -> TRUE | H109: =AND(H107=TRUE,H108=TRUE,H$78=TRUE) -> TRUE | I109: =AND(I107=TRUE,I108=TRUE,I$78=TRUE) -> FALSE | J109: =AND(J107=TRUE,J108=TRUE,J$78=TRUE) -> FALSE | K109: =AND(K107=TRUE,K108=TRUE,K$78=TRUE) -> FALSE | L109: =AND(L107=TRUE,L108=TRUE,L$78=TRUE) -> FALSE | M109: =AND(M107=TRUE,M108=TRUE,M$78=TRUE) -> FALSE | N109: =AND(N107=TRUE,N108=TRUE,N$78=TRUE) -> FALSE | P109: =OU(ET(L129=VRAI;L130=VRAI);ET(L131=VRAI;T123=VRAI))
A110: Calculs | B110: Si 2 solutions sont VRAI | D110: 1 | E110: 2 | F110: 3 | G110: 4 | H110: 5 | I110: 6 | J110: 7 | K110: 8 | L110: 9 | M110: 10 | N110: 11
A111: Calculs
A112: Calculs | B112: Primaire à 80°C | D112: Solution 1 | E112: Solution 2 | F112: Solution 3 | G112: Solution 4
A113: Calculs | D113: =IFERROR(D114,1) -> 2 | E113: =D113+1 -> 3 | F113: =E113+1 -> 4 | G113: =F113+1 -> 5 | P113: compteur
A114: Calculs | D114: =IF(ISERROR(HLOOKUP(TRUE,D109:N110,2,FALSE))=TRUE,FALSE,HLOOKUP(TRUE,D109:N110,2,FALSE)) -> 2 | E114: =IF(E113>=11,FALSE,IF(INDEX($D109:$N109,1,E113)=TRUE,INDEX($D110:$N110,1,E113),FALSE)) -> 3 | F114: =IF(F113>=11,FALSE,IF(INDEX($D109:$N109,1,F113)=TRUE,INDEX($D110:$N110,1,F113),FALSE)) -> 4 | G114: =IF(G113>=11,FALSE,IF(INDEX($D109:$N109,1,G113)=TRUE,INDEX($D110:$N110,1,G113),FALSE)) -> 5 | P114: compteur
A115: Calculs | C115: Type de ballon | D115: =IF(D114<>FALSE,INDEX($D$51:$N$51,1,D114),"") -> VIHR 400 | E115: =IF(E114<>FALSE,INDEX($D$51:$N$51,1,E114),"") -> VIHR 500 | F115: =IF(F114<>FALSE,INDEX($D$51:$N$51,1,F114),"") -> VIHR 750 | G115: =IF(G114<>FALSE,INDEX($D$51:$N$51,1,G114),"") -> VIHR 1000
A116: Calculs | C116: Puissance minimum du générateur pour soutirage 60°C | D116: =IF(D114<>FALSE,INDEX($D77:$N77,1,D114),"") -> 26.28288239 | E116: =IF(E114<>FALSE,INDEX($D77:$N77,1,E114),"") -> 23.38183238 | F116: =IF(F114<>FALSE,INDEX($D77:$N77,1,F114),"") -> 15.46701117 | G116: =IF(G114<>FALSE,INDEX($D77:$N77,1,G114),"") -> 11.43076769
A117: Calculs
A118: Calculs | B118: Calcul allSTOR
A119: Calculs | B119: TECS = | D119: =Calcul2!C46 -> 60 | E119: °C
A120: Calculs | B120: TEF = | D120: =Calcul2!C49 -> 5.7 | E120: °C | P120: en fontion de la zone clim
A121: Calculs
A122: Calculs | B122: DT = | C122: TECS - TEF | D122: =D119-D120 -> 54.3 | E122: °C
A123: Calculs | B123: 1 ° Durant le débit de pointe
A124: Calculs | B124: t10 = | D124: =10*60 -> 600 | E124: s | F124: =D124/60 -> 10 | G124: mn
A125: Calculs | B125: V10 = | D125: =Calcul2!D65 -> 232.3452723 | E125: Litres | F125: =D125+D125*($D$119-45)/($D$119-$D$120) -> 296.5290492 | G125: l | H125: volume utile si on était à 45°C | P125: en foction du profil de l'établisement
A126: Calculs | B126: DébitECS = | D126: =D125/D124 -> 0.3872421205 | E126: kg / s | F126: =F125/F124 -> 29.65290492 | G126: l /mn | H126: Valeur pour recherche
A127: Calculs | B127: TD2Mini.t10 = | D127: =TempVPM_W!B32 -> 75.27328 | E127: °C | F127: =TempVPM_W!B33 -> VPM 40/45/2 W | H127: => issu outil allSTOR
A128: Calculs | B128: P = | C128: "M cp DT" | D128: =$D$126*4180*($D$119-$D$120)/1000 -> 87.89389305 | E128: kW
A129: Calculs | B129: 2 ° Puis durant le débit pluri-horaire quand TD2 = TD2MINI.t10
A130: Calculs | B130: th ou tph = | D130: =Calcul2!D71*3600 -> 5752.848261 | E130: s | F130: =D130/60 -> 95.88080435 | G130: mn | P130: en foction du profil de l'établisement
A131: Calculs | B131: Vh ou Vph = | D131: =Calcul2!D70 -> 990 | E131: Litres | F131: =D131+D131*($D$119-45)/($D$119-$D$120) -> 1263.480663 | G131: l | H131: volume utile si on était à 45°C | P131: en foction du profil de l'établisement
A132: Calculs | B132: DébitECS = | D132: =D131/D130 -> 0.172088669 | E132: kg / s | F132: =F131/F130 -> 13.17761852 | G132: l /mn | H132: Valeur pour recherche
A133: Calculs | B133: TD2Mini.th = | D133: =TempVPM_W!B38 -> 65.5717 | E133: °C | F133: =TempVPM_W!B39 -> VPM 20/25/2 W | H133: => issu outil allSTOR
A134: Calculs | B134: P = | C134: "M cp DT" | D134: =$D$132*4180*($D$119-$D$120)/1000 -> 39.05965355 | E134: kW
A135: Calculs | B135: Donnée ballon allSTOR | D135: VPS 300 | E135: VPS 500 | F135: VPS 800 | G135: VPS 1000 | H135: VPS 1500 | I135: VPS 2000 | J135: VPS 1500 + VPS 1000 | K135: 2x VPS 1500 | L135: VPS 2000+ VPS 1500 | M135: 2x VPS 2000
A136: Calculs | D136: 0.303 | E136: 0.491 | F136: 0.778 | G136: 0.962 | H136: 1.505 | I136: 1.917 | J136: 2.467 | K136: 3.01 | L136: 3.422 | M136: 3.834 | N136: m3
A137: Calculs | B137: Méthode suivant AICVF
A138: Calculs | B138: En instantané pur
A139: Calculs | B139: PI = | C139: 1,16/1000 x DT x V10 / t10 | D139: =4180/1000*$D$122*$D$125/$D$124 -> 87.89389305 | E139: 87.89389305 | F139: 87.89389305 | G139: 87.89389305 | H139: 87.89389305 | I139: 87.89389305 | J139: 87.89389305 | K139: 87.89389305 | L139: 87.89389305 | M139: 87.89389305 | N139: kW
A140: Calculs | B140: V = | C140: 0
A141: Calculs | B141: En semi-instantané
A142: Calculs | B142: Vsu = | C142: 0,6 x V . (TECS - TEF)/(TD2Mini - TEF) | D142: =0.6*(D$136*($D$119-$D$120)/($D$127-$D$120))*1000 -> 141.8898175 | E142: 229.927064 | F142: 364.3243498 | G142: 450.4884634 | H142: 704.7662551 | I142: 897.6989442 | J142: 1155.254718 | K142: 1409.53251 | L142: 1602.465199 | M142: 1795.397888 | N142: Litres
A143: Calculs | B143: PSI = | C143: 1,16/1000 x DT x (V10 Utile-VSU) / t10 | D143: =4180/1000*$D$122*($D$125-D$142)/$D$124 -> 34.218394 | E143: 0.9147840312 | F143: -49.92636523 | G143: -82.52138776 | H143: -178.7121336 | I143: -251.6966405 | J143: -349.1274144 | K143: -445.3181602 | L143: -518.3026672 | M143: -591.2871741 | N143: kW
A144: Calculs | B144: En semi-accumulé
A145: Calculs | B145: Vsu = | C145: 0,8 x V . (TECS - TEF)/(TD2Mini - TEF) | D145: =0.8*D$136*($D$119-$D$120)/($D$127-$D$120)*1000 -> 189.1864233 | E145: 306.5694186 | F145: 485.7657997 | G145: 600.6512845 | H145: 939.6883401 | I145: 1196.931926 | J145: 1540.339625 | K145: 1879.37668 | L145: 2136.620266 | M145: 2393.863851 | N145: Litres
A146: Calculs | B146: PSA = | C146: 1,16/1000 x DT x (Vph-VSU) / th | D146: =4180/1000*$D$122*($D$131-D145)/$D$130 -> 31.59545542 | E146: 26.96420377 | F146: 19.89415472 | G146: 15.36144034 | H146: 1.985006065 | I146: -8.164332648 | J146: -21.71320714 | K146: -35.08964142 | L146: -45.23898013 | M146: -55.38831885 | N146: kW
A147: Calculs | B147: Volume de transition entre semi-instantané et semi-accumulé
A148: Calculs | B148: VSI/SA = | C148: (Vh x t10 - V10 x th)/(0,8 x t10 - 0,6 x th) | D148: =($D$131*$D$124-$D$125*$D$130)/(0.8*$D$124-0.6*$D$130) -> 249.9057298 | E148: 249.9057298 | F148: 249.9057298 | G148: 249.9057298 | H148: 249.9057298 | I148: 249.9057298 | J148: 249.9057298 | K148: 249.9057298 | L148: 249.9057298 | M148: 249.9057298 | N148: Litres
A149: Calculs | B149: si V < VSI/SA alors P = PSI sinon P = PSA | C149: Vtr = Th/(1-3,6Th) x (coeff logt x 620,7 + Vh/Th - V10/T10)
A150: Calculs | B150: P = | D150: =IF(D136*1000<D148,D143,D146) -> 31.59545542 | E150: =IF(E136*1000<E148,E143,E146) -> 26.96420377 | F150: =IF(F136*1000<F148,F143,F146) -> 19.89415472 | G150: =IF(G136*1000<G148,G143,G146) -> 15.36144034 | H150: =IF(H136*1000<H148,H143,H146) -> 1.985006065 | I150: -8.164332648 | J150: -21.71320714 | K150: -35.08964142 | L150: -45.23898013 | M150: -55.38831885 | N150: kW
B151: Si la puissance > 0 réponse VRAI | D151: =D150>0 -> TRUE | E151: =E150>0 -> TRUE | F151: =F150>0 -> TRUE | G151: =G150>0 -> TRUE | H151: =H150>0 -> TRUE | I151: =I150>0 -> FALSE | J151: =J150>0 -> FALSE | K151: =K150>0 -> FALSE | L151: =L150>0 -> FALSE | M151: =M150>0 -> FALSE
A152: Calculs
A153: Calculs | B153: Contrôle si V10 est bien < Vsu | D153: =IF($D$125<D$145,TRUE,FALSE) -> FALSE | E153: TRUE | F153: TRUE | G153: TRUE | H153: TRUE | I153: TRUE | J153: TRUE | K153: TRUE | L153: TRUE | M153: TRUE
A154: Calculs | B154: Contrôle si Psa ou PSI est bien > à equivalence de rechauffage < à 8 h | D154: =IF(D$136*1000*1.16*($D$127-$D$120)/1000/SQRT(D150^2)*60<480,TRUE,FALSE) -> TRUE | E154: TRUE | F154: TRUE | G154: TRUE | H154: FALSE | I154: FALSE | J154: FALSE | K154: TRUE | L154: TRUE | M154: TRUE
A155: Calculs | B155: Si les 3 solutions sont Vrai | D155: =AND(D153=TRUE,D154=TRUE,D$151=TRUE) -> FALSE | E155: =AND(E153=TRUE,E154=TRUE,E$151=TRUE) -> TRUE | F155: TRUE | G155: TRUE | H155: FALSE | I155: FALSE | J155: FALSE | K155: FALSE | L155: FALSE | M155: FALSE
A156: Calculs | B156: Si les 3 solutions sont Vrai donne l'index | D156: 1 | E156: 2 | F156: 3 | G156: 4 | H156: 5 | I156: 6 | J156: 7 | K156: 8 | L156: 9 | M156: 10
A157: Calculs
A158: Calculs | D158: =D159 -> 2 | E158: =D158+1 -> 3 | F158: =E158+1 -> 4 | G158: =F158+1 -> 5
A159: Calculs | B159: Index des réponses PV | D159: =HLOOKUP(TRUE,Calcul2!D155:M156,2,FALSE) -> 2 | E159: =IF(INDEX(Calcul2!D155:M155,1,E158)=TRUE,INDEX(Calcul2!D156:M156,1,E158),FALSE) -> 3 | F159: =IF(INDEX(Calcul2!D155:M155,1,F158)=TRUE,INDEX(Calcul2!D156:M156,1,F158),FALSE) -> 4 | G159: =IF(INDEX(Calcul2!D155:M155,1,G158)=TRUE,INDEX(Calcul2!D156:M156,1,G158),FALSE) -> FALSE
A160: Calculs | C160: Solutions | D160: Solution 9 | E160: Solution 10 | F160: Solution 11 | G160: Solution 12
A161: Calculs | C161: Ballon | D161: =IF($D$159<>FALSE,INDEX(Calcul2!$D$135:$M$135,1,$D$159),"") -> VPS 500 | E161: =IF($E$159<>FALSE,INDEX(Calcul2!$D$135:$M$135,1,$E$159),"") -> VPS 800 | F161: =IF($F$159<>FALSE,INDEX(Calcul2!$D$135:$M$135,1,$F$159),"") -> VPS 1000 | G161: =IF($G$159<>FALSE,INDEX(Calcul2!$D$135:$M$135,1,$G$159),"") -> 
A162: Calculs | C162: Puissance minimum du générateur | D162: =IF($D$159<>FALSE,INDEX(Calcul2!$D$150:$M$150,1,$D$159),"") -> 26.96420377 | E162: =IF($E$159<>FALSE,INDEX(Calcul2!$D$150:$M$150,1,$E$159),"") -> 19.89415472 | F162: =IF($F$159<>FALSE,INDEX(Calcul2!$D$150:$M$150,1,$F$159),"") -> 15.36144034 | G162: =IF($G$159<>FALSE,INDEX(Calcul2!$D$150:$M$150,1,$G$159),"") -> 
A163: Calculs | C163: Module aguaFLOW W | D163: =IF($D$159<>FALSE,Calcul2!$F$127,"") -> VPM 40/45/2 W | E163: =IF($E$159<>FALSE,Calcul2!$F$127,"") -> VPM 40/45/2 W | F163: =IF($F$159<>FALSE,Calcul2!$F$127,"") -> VPM 40/45/2 W | G163: =IF($G$159<>FALSE,Calcul2!$F$127,"") -> 
A164: Calculs | C164: Temperature de stockage TD2Mini.t10 (en °C) | D164: =IF($D$159<>FALSE,Calcul2!$D$127,"") -> 75.27328 | E164: =IF($E$159<>FALSE,Calcul2!$D$127,"") -> 75.27328 | F164: =IF($F$159<>FALSE,Calcul2!$D$127,"") -> 75.27328 | G164: =IF($G$159<>FALSE,Calcul2!$D$127,"") -> 
A165: Calculs | C165: Choix de la solution
A166: Calculs | C166: Puissance échangeurs (en kW)* | D166: =IF($D$159<>FALSE,TempVPM_W!$B$34,"") -> 109 | E166: =IF($D$159<>FALSE,TempVPM_W!$B$34,"") -> 109 | F166: =IF($D$159<>FALSE,TempVPM_W!$B$34,"") -> 109 | G166: =IF($D$159<>FALSE,TempVPM_W!$B$34,"") -> 109
A167: Calculs | C167: Volume ballon (en L) | D167: =IF($D$159<>FALSE,INDEX(Calcul2!$D$136:$M$136,1,$D$159),"")*1000 -> 491 | E167: =IF($E$159<>FALSE,INDEX(Calcul2!$D$136:$M$136,1,$E$159),"")*1000 -> 778 | F167: =IF($F$159<>FALSE,INDEX(Calcul2!$D$136:$M$136,1,$F$159)*1000,"") -> 962 | G167: =IF($G$159<>FALSE,INDEX(Calcul2!$D$136:$M$136,1,$G$159)*1000,"") -> 
A168: Calculs | C168: Temps de réchauffage du volume V10 (en mn) | D168: =IF(D159<>FALSE,Calcul2!$D$125*1.16*(Calcul2!$D$127-Calcul2!$D$120)/1000/D162*60,"") -> 41.72515489 | E168: =IF(E159<>FALSE,Calcul2!$D$125*1.16*(Calcul2!$D$127-Calcul2!$D$120)/1000/E162*60,"") -> 56.55357541 | F168: =IF(F159<>FALSE,Calcul2!$D$125*1.16*(Calcul2!$D$127-Calcul2!$D$120)/1000/F162*60,"") -> 73.24089109 | G168: =IF(G159<>FALSE,Calcul2!$D$125*1.16*(Calcul2!$D$127-Calcul2!$D$120)/1000/G162*60,"") -> 
A169: Calculs | C169: Temps de réchauffage au démarrage (en mn) | D169: =IF(D159<>FALSE,D167*1.16*(Calcul2!$D$127-Calcul2!$D$120)/1000/D162*60,"") -> 88.1750287 | E169: =IF(E159<>FALSE,E167*1.16*(Calcul2!$D$127-Calcul2!$D$120)/1000/E162*60,"") -> 189.3676649 | F169: =IF(F159<>FALSE,F167*1.16*(Calcul2!$D$127-Calcul2!$D$120)/1000/F162*60,"") -> 303.2458398 | G169: =IF(G159<>FALSE,G167*1.16*(Calcul2!$D$127-Calcul2!$D$120)/1000/G162*60,"") -> 
A170: Calculs | C170: volume utile après 10 mn (en L) | D170: =IF($D$159<>FALSE,INDEX(Calcul2!$D$145:$M$145,1,$D$159)-Calcul2!$D$125,"") -> 74.22414632 | E170: =IF($E$159<>FALSE,INDEX(Calcul2!$D$145:$M$145,1,$E$159)-Calcul2!$D$125,"") -> 253.4205275 | F170: =IF($F$159<>FALSE,INDEX(Calcul2!$D$145:$M$145,1,$F$159)-Calcul2!$D$125,"") -> 368.3060122 | G170: =IF($G$159<>FALSE,INDEX(Calcul2!$D$145:$M$145,1,$G$159)-Calcul2!$D$125,"") -> 
A171: Calculs | C171: * T° eau froide 10 °C, T° primaire 65 °C , T° sortie ECS à 45 °C
A172: Calculs
A173: Calculs
A174: =B$176 -> Logements collectifs
A175: Logements collectifs | B175: Définition des besoins
A176: Logements collectifs | B176: Logements collectifs | C176: Oui | D176: conso à 60 °C | E176: *source consommation : AICVF - 2004 | I176: N Standard
A177: Logements collectifs | B177: Nombre de logements de type 1 ou studio | C177: ='Données d''entrée'!G28 -> 11 | D177: 50 | E177: Litres à 60°C / Jour | I177: 0.8
A178: Logements collectifs | B178: Nombre de logements de type 2 | C178: ='Données d''entrée'!G29 -> 0 | D178: 75 | E178: Litres à 60°C / Jour | I178: 0.9
A179: Logements collectifs | B179: Nombre de logements de type 3 | C179: ='Données d''entrée'!G30 -> 0 | D179: 100 | E179: Litres à 60°C / Jour | I179: 1
A180: Logements collectifs | B180: Nombre de logements de type 4 | C180: ='Données d''entrée'!G31 -> 0 | D180: 150 | E180: Litres à 60°C / Jour | I180: 1.2 | J180: ?
A181: Logements collectifs | B181: Nombre de logements de type 5 | C181: ='Données d''entrée'!G32 -> 0 | D181: 200 | E181: Litres à 60°C / Jour | I181: 1.4 | J181: ?
A182: Logements collectifs | B182: Consommation journalière | C182: 0 | J182: Aicvf
A183: Logements collectifs | B183: C (Volume d'eau) à 60°C | C183: =SUMPRODUCT(Calcul2!$C$177:$C$181,Calcul2!$D$177:$D$181) -> 550 | D183: Litres à 60°C | F183: C=Somme ni * Ci
B184: Nombre total de logements | D184: =SUM(C177:C181) -> 11
A185: =B$176 -> Logements collectifs | B185: N | D185: =SUMPRODUCT(Calcul2!C177:C181,Calcul2!I177:I181) -> 8.8
A186: Logements collectifs | B186: s | D186: =0.17+1/SQRT($D$185-1) -> 0.528057437
A187: Logements collectifs | B187: Vpm | D187: =50*$D$185*$D$186 -> 232.3452723
A188: Logements collectifs | B188: Tpm | D188: =$C$8 -> 0.1666666667
A189: Logements collectifs | B189: Vph | D189: =0.75*150*$D$185 -> 990
A190: Logements collectifs | B190: Tph | D190: =5*$D$185^0.905/(15+$D$185^0.92) -> 1.598013406
A191: =B$194 -> Hôtellerie
A192: Hôtellerie | B192: Définition des besoins | C192: ='Données d''entrée'!G145 -> 0
A193: Hôtellerie | B193: Profils de l'établissement
A194: Hôtellerie | B194: Hôtellerie | C194: Oui | D194: Voir table
A195: Hôtellerie | B195: Catégorie | C195: ='Données d''entrée'!G36 -> Hôtel 1 *
A196: Hôtellerie | C196: ='Données d''entrée'!G37 -> 50
A197: Hôtellerie | B197: Consommation journalière | C197: Oui
A198: Hôtellerie | B198: C (Volume d'eau) à 60°C | C198: =VLOOKUP(C195,Vol_ECS_Hotel,2,FALSE)*C196 -> 3750 | D198: Litres à 60°C | E198: C=Somme ni * Ci
A199: Hôtellerie | B199: Facteur de simultaneité suivant "guide du chauffage pour l'habitat collectif & le tertiaire"
A200: Hôtellerie | B200: Est ce qu'il sagir du hotelde sport d'hiver, de seminaire ou de bord de mer? | C200: ='Données d''entrée'!G38 -> Oui
... 78 more rows

Sheet TempVPM_W (hidden)
A1: Code | B1: Température de consigne | C1: Température de stockage | D1: Débit | E1: Température de consigne | F1: Température de stockage | G1: Débit | H1: Température de consigne | I1: Température de stockage | J1: Débit | K1: Température de consigne | L1: Température de stockage | M1: Débit | N1: Débit max. | P1: Delta T sur le stock | S1: Débit max.
A2: 1 | B2: 50 | C2: =0.0071429*B2^2 + 0.042857*B2 + 32.571+2 -> 54.5711 | D2: =0.0036429*B2^2 - 0.64393*B2 + 35.35 -> 12.26075 | E2: 55 | F2: =0.0071429*E2^2 + 0.042857*E2 + 32.571+2 -> 58.5354075 | G2: =0.0036429*E2^2 - 0.64393*E2 + 35.35 -> 10.9536225 | H2: 60 | I2: =0.0071429*H2^2 + 0.042857*H2 + 32.571+2 -> 62.85686 | J2: =0.0036429*H2^2 - 0.64393*H2 + 35.35 -> 9.82864 | K2: 65 | L2: =0.0071429*K2^2 + 0.042857*K2 + 32.571+2 -> 67.5354575 | M2: =0.0036429*K2^2 - 0.64393*K2 + 35.35 -> 8.8858025 | N2: 14 l/min | O2: VPM 20/25/2 W | P2: =ROUND(Q2*R2,1) -> 27.5 | Q2: 3.5 | R2: =70/8.9 -> 7.865168539 | S2: 14
A3: 2 | B3: 50 | C3: =0.0064286*B3^2 + 0.096429*B3 + 34.643+2 -> 57.53595 | D3: =0.0064762*B3^2 - 1.0929*B3 + 56.952 -> 18.4975 | E3: 55 | F3: =0.0064286*E3^2 + 0.096429*E3 + 34.643+2 -> 61.39311 | G3: =0.0064762*E3^2 - 1.0929*E3 + 56.952 -> 16.433005 | H3: 60 | I3: =0.0064286*H3^2 + 0.096429*H3 + 34.643+2 -> 65.5717 | J3: =0.0064762*H3^2 - 1.0929*H3 + 56.952 -> 14.69232 | K3: 65 | L3: =0.0064286*K3^2 + 0.096429*K3 + 34.643+2 -> 70.07172 | M3: =0.0064762*K3^2 - 1.0929*K3 + 56.952 -> 13.275445 | N3: 21 l/min | O3: VPM 20/25/2 W | P3: =ROUND(Q3*R3,1) -> 33 | Q3: 4.2 | R3: =70/8.9 -> 7.865168539 | S3: 21
A4: 3 | B4: 50 | C4: =0.0092857*B4^2 - 0.225*B4 + 45.714+2 -> 59.67825 | D4: =0.0079048*B4^2 - 1.3243*B4 + 68.467 -> 22.014 | E4: 55 | F4: =0.0092857*E4^2 - 0.225*E4 + 45.714+2 -> 63.4282425 | G4: =0.0079048*E4^2 - 1.3243*E4 + 68.467 -> 19.54252 | H4: 60 | I4: =0.0092857*H4^2 - 0.225*H4 + 45.714+2 -> 67.64252 | J4: =0.0079048*H4^2 - 1.3243*H4 + 68.467 -> 17.46628 | K4: 65 | L4: =0.0092857*K4^2 - 0.225*K4 + 45.714+2 -> 72.3210825 | M4: =0.0079048*K4^2 - 1.3243*K4 + 68.467 -> 15.78528 | N4: 25 l/min | O4: VPM 20/25/2 W | P4: 37.8 | Q4: 4.8 | R4: 7.865168539 | S4: 23
A5: 4 | B5: 50 | C5: =0.0064286*B5^2 - 0.060714*B5 + 48.571+2 -> 63.6068 | D5: =0.0096667*B5^2 - 1.6264*B5 + 84.448 -> 27.29475 | E5: 55 | F5: =0.0064286*E5^2 - 0.060714*E5 + 48.571+2 -> 66.678245 | G5: =0.0096667*E5^2 - 1.6264*E5 + 84.448 -> 24.2377675 | H5: 60 | I5: =0.0064286*H5^2 - 0.060714*H5 + 48.571+2 -> 70.07112 | J5: =0.0096667*H5^2 - 1.6264*H5 + 84.448 -> 21.66412 | K5: 65 | L5: =0.0064286*K5^2 - 0.060714*K5 + 48.571+2 -> 73.785425 | M5: =0.0096667*K5^2 - 1.6264*K5 + 84.448 -> 19.5738075 | N5: 31 l/min | O5: VPM 30/35/2 W | P5: 44 | Q5: 5.6 | R5: 7.865168539 | S5: 31
A6: 5 | B6: 50 | C6: =0.0092857*B6^2 - 0.39643*B6 + 60.571+2 -> 65.96375 | D6: =0.010714*B6^2 - 1.8136*B6 + 94.714 -> 30.819 | E6: 55 | F6: =0.0092857*E6^2 - 0.39643*E6 + 60.571+2 -> 68.8565925 | G6: =0.010714*E6^2 - 1.8136*E6 + 94.714 -> 27.37585 | H6: 60 | I6: =0.0092857*H6^2 - 0.39643*H6 + 60.571+2 -> 72.21372 | J6: =0.010714*H6^2 - 1.8136*H6 + 94.714 -> 24.4684 | K6: 65 | L6: =0.0092857*K6^2 - 0.39643*K6 + 60.571+2 -> 76.0351325 | M6: =0.010714*K6^2 - 1.8136*K6 + 94.714 -> 22.09665 | N6: 35 l/min | O6: VPM 30/35/2 W | P6: 44.8 | Q6: 5.7 | R6: 7.865168539 | S6: 35
A7: 6 | B7: 50 | C7: =-0.00055556*B7^3 + 0.10548*B7^2 - 5.6992*B7 + 153.4+2 -> 64.695 | D7: =-0.00011111*B7^3 + 0.034143*B7^2 - 3.4827*B7 + 138.66 -> 35.99375 | E7: 55 | F7: =-0.00055556*E7^3 + 0.10548*E7^2 - 5.6992*E7 + 153.4+2 -> 68.589705 | G7: =-0.00011111*E7^3 + 0.034143*E7^2 - 3.4827*E7 + 138.66 -> 31.90814875 | H7: 60 | I7: =-0.00055556*H7^3 + 0.10548*H7^2 - 5.6992*H7 + 153.4+2 -> 73.17504 | J7: =-0.00011111*H7^3 + 0.034143*H7^2 - 3.4827*H7 + 138.66 -> 28.61304 | K7: 65 | L7: =-0.00055556*K7^3 + 0.10548*K7^2 - 5.6992*K7 + 153.4+2 -> 78.034335 | M7: =-0.00011111*K7^3 + 0.034143*K7^2 - 3.4827*K7 + 138.66 -> 26.02509125 | N7: 41 l/min | O7: VPM 40/45/2 W | P7: 44.8 | Q7: 5.7 | R7: 7.865168539 | S7: 41
A8: 7 | B8: 50 | C8: =-0.00066667*B8^3 + 0.12667*B8^2 - 7.0333*B8 + 183.26+2 -> 66.93625 | D8: =-0.00028889*B8^3 + 0.065905*B8^2 - 5.4166*B8 + 181.6 -> 39.42125 | E8: 55 | F8: =-0.00066667*E8^3 + 0.12667*E8^2 - 7.0333*E8 + 183.26+2 -> 70.68802875 | G8: =-0.00028889*E8^3 + 0.065905*E8^2 - 5.4166*E8 + 181.6 -> 34.98555125 | H8: 60 | I8: =-0.00066667*H8^3 + 0.12667*H8^2 - 7.0333*H8 + 183.26+2 -> 75.27328 | J8: =-0.00028889*H8^3 + 0.065905*H8^2 - 5.4166*H8 + 181.6 -> 31.46176 | K8: 65 | L8: =-0.00066667*K8^3 + 0.12667*K8^2 - 7.0333*K8 + 183.26+2 -> 80.19200125 | M8: =-0.00028889*K8^3 + 0.065905*K8^2 - 5.4166*K8 + 181.6 -> 28.63320875 | N8: 45 l/min | O8: VPM 40/45/2 W | P8: 44.8 | Q8: 5.7 | R8: 7.865168539 | S8: 45
A9: 8 | B9: 50 | C9: =0.0092857*B9^2 - 0.225*B9 + 45.714+2 -> 59.67825 | D9: =( 0.0079048*B9^2 - 1.3243*B9 + 68.467)*2 -> 44.028 | E9: 55 | F9: =0.0092857*E9^2 - 0.225*E9 + 45.714+2 -> 63.4282425 | G9: =( 0.0079048*E9^2 - 1.3243*E9 + 68.467)*2 -> 39.08504 | H9: 60 | I9: =0.0092857*H9^2 - 0.225*H9 + 45.714+2 -> 67.64252 | J9: =( 0.0079048*H9^2 - 1.3243*H9 + 68.467)*2 -> 34.93256 | K9: 65 | L9: =0.0092857*K9^2 - 0.225*K9 + 45.714+2 -> 72.3210825 | M9: =( 0.0079048*K9^2 - 1.3243*K9 + 68.467)*2 -> 31.57056 | N9: 2x 25 l/min | O9: 2x VPM 20/25/2 W | P9: 44.8 | Q9: 5.7 | R9: 7.865168539
A10: 9 | B10: 50 | C10: =0.0092857*B10^2 - 0.39643*B10 + 60.571+2 -> 65.96375 | D10: =(0.010714*B10^2 - 1.8136*B10 + 94.714)+(0.0079048*B10^2 - 1.3243*B10 + 68.467) -> 52.833 | E10: 55 | F10: =0.0092857*E10^2 - 0.39643*E10 + 60.571+2 -> 68.8565925 | G10: =(0.010714*E10^2 - 1.8136*E10 + 94.714)+(0.0079048*E10^2 - 1.3243*E10 + 68.467) -> 46.91837 | H10: 60 | I10: =0.0092857*H10^2 - 0.39643*H10 + 60.571+2 -> 72.21372 | J10: =(0.010714*H10^2 - 1.8136*H10 + 94.714)+(0.0079048*H10^2 - 1.3243*H10 + 68.467) -> 41.93468 | K10: 65 | L10: =0.0092857*K10^2 - 0.39643*K10 + 60.571+2 -> 76.0351325 | M10: =(0.010714*K10^2 - 1.8136*K10 + 94.714)+(0.0079048*K10^2 - 1.3243*K10 + 68.467) -> 37.88193 | N10: 25 l/min + 35 l/min | O10: VPM 30/35/2 W + VPM 20/25/2 W | P10: 44.8 | Q10: 5.7 | R10: 7.865168539
A11: 10 | B11: 50 | C11: =0.0092857*B11^2 - 0.39643*B11 + 60.571+2 -> 65.96375 | D11: =(0.010714*B11^2 - 1.8136*B11 + 94.714)*2 -> 61.638 | E11: 55 | F11: 68.8565925 | G11: =(0.010714*E11^2 - 1.8136*E11 + 94.714)*2 -> 54.7517 | H11: 60 | I11: 72.21372 | J11: =(0.010714*H11^2 - 1.8136*H11 + 94.714)*2 -> 48.9368 | K11: 65 | L11: 76.0351325 | M11: =(0.010714*K11^2 - 1.8136*K11 + 94.714)*2 -> 44.1933 | N11: 2x 35 l/min | O11: 2x VPM 30/35/2 W | P11: 44.8 | Q11: 5.7 | R11: 7.865168539
A12: 11 | B12: 50 | C12: =0.0092857*B12^2 - 0.225*B12 + 45.714+2 -> 59.67825 | D12: =( 0.0079048*B12^2 - 1.3243*B12 + 68.467)*3 -> 66.042 | E12: 55 | F12: =0.0092857*E12^2 - 0.225*E12 + 45.714+2 -> 63.4282425 | G12: =( 0.0079048*E12^2 - 1.3243*E12 + 68.467)*3 -> 58.62756 | H12: 60 | I12: =0.0092857*H12^2 - 0.225*H12 + 45.714+2 -> 67.64252 | J12: =( 0.0079048*H12^2 - 1.3243*H12 + 68.467)*3 -> 52.39884 | K12: 65 | L12: =0.0092857*K12^2 - 0.225*K12 + 45.714+2 -> 72.3210825 | M12: =( 0.0079048*K12^2 - 1.3243*K12 + 68.467)*3 -> 47.35584 | N12: 3x 25 l/min | O12: 3x VPM 20/25/2 W | P12: 44.8 | Q12: 5.7 | R12: 7.865168539
A13: 12 | B13: 50 | C13: =0.0092857*B13^2 - 0.39643*B13 + 60.571+2 -> 65.96375 | D13: =(0.010714*B13^2 - 1.8136*B13 + 94.714)+(0.0079048*B13^2 - 1.3243*B13 + 68.467)*2 -> 74.847 | E13: 55 | F13: 68.8565925 | G13: =(0.010714*E13^2 - 1.8136*E13 + 94.714)+(0.0079048*E13^2 - 1.3243*E13 + 68.467)*2 -> 66.46089 | H13: 60 | I13: 72.21372 | J13: =(0.010714*H13^2 - 1.8136*H13 + 94.714)+(0.0079048*H13^2 - 1.3243*H13 + 68.467)*2 -> 59.40096 | K13: 65 | L13: 76.0351325 | M13: =(0.010714*K13^2 - 1.8136*K13 + 94.714)+(0.0079048*K13^2 - 1.3243*K13 + 68.467)*2 -> 53.66721 | N13: 2x 25 l/min + 35 l/min | O13: VPM 30/35/2 W + 2x VPM 20/25/2 W | P13: 44.8 | Q13: 5.7 | R13: 7.865168539
A14: 13 | B14: 50 | C14: =-0.00066667*B14^3 + 0.12667*B14^2 - 7.0333*B14 + 183.26+2 -> 66.93625 | D14: =(-0.00028889*B14^3 + 0.065905*B14^2 - 5.4166*B14 + 181.6)*2 -> 78.8425 | E14: 55 | F14: =-0.00066667*E14^3 + 0.12667*E14^2 - 7.0333*E14 + 183.26+2 -> 70.68802875 | G14: =(-0.00028889*E14^3 + 0.065905*E14^2 - 5.4166*E14 + 181.6)*2 -> 69.9711025 | H14: 60 | I14: =-0.00066667*H14^3 + 0.12667*H14^2 - 7.0333*H14 + 183.26+2 -> 75.27328 | J14: =(-0.00028889*H14^3 + 0.065905*H14^2 - 5.4166*H14 + 181.6)*2 -> 62.92352 | K14: 65 | L14: =-0.00066667*K14^3 + 0.12667*K14^2 - 7.0333*K14 + 183.26+2 -> 80.19200125 | M14: =(-0.00028889*K14^3 + 0.065905*K14^2 - 5.4166*K14 + 181.6)*2 -> 57.2664175 | N14: 2x 45 l/min | O14: 2x VPM 40/45/2 W | P14: 44.8 | Q14: 5.7 | R14: 7.865168539
A15: 14 | B15: 50 | C15: =0.0092857*B15^2 - 0.39643*B15 + 60.571+2 -> 65.96375 | D15: =(0.010714*B15^2 - 1.8136*B15 + 94.714)*2+(0.0079048*B15^2 - 1.3243*B15 + 68.467) -> 83.652 | E15: 55 | F15: =0.0092857*E15^2 - 0.39643*E15 + 60.571+2 -> 68.8565925 | G15: =(0.010714*E15^2 - 1.8136*E15 + 94.714)*2+(0.0079048*E15^2 - 1.3243*E15 + 68.467) -> 74.29422 | H15: 60 | I15: =0.0092857*H15^2 - 0.39643*H15 + 60.571+2 -> 72.21372 | J15: =(0.010714*H15^2 - 1.8136*H15 + 94.714)*2+(0.0079048*H15^2 - 1.3243*H15 + 68.467) -> 66.40308 | K15: 65 | L15: =0.0092857*K15^2 - 0.39643*K15 + 60.571+2 -> 76.0351325 | M15: =(0.010714*K15^2 - 1.8136*K15 + 94.714)*2+(0.0079048*K15^2 - 1.3243*K15 + 68.467) -> 59.97858 | N15: 25 l/min+ 2x35 l/min | O15: 2x VPM 30/35/2 W + VPM 20/25/2 W | P15: 44.8 | Q15: 5.7 | R15: 7.865168539
A16: 15 | B16: 50 | C16: =0.0092857*B16^2 - 0.39643*B16 + 60.571+2 -> 65.96375 | D16: =(0.010714*B16^2 - 1.8136*B16 + 94.714)*3 -> 92.457 | E16: 55 | F16: 68.8565925 | G16: =(0.010714*E16^2 - 1.8136*E16 + 94.714)*3 -> 82.12755 | H16: 60 | I16: 72.21372 | J16: =(0.010714*H16^2 - 1.8136*H16 + 94.714)*3 -> 73.4052 | K16: 65 | L16: 76.0351325 | M16: =(0.010714*K16^2 - 1.8136*K16 + 94.714)*3 -> 66.28995 | N16: 3x 35 l/min | O16: 3x VPM 30/35/2 W | P16: 44.8 | Q16: 5.7 | R16: 7.865168539
A17: 16 | B17: 50 | C17: =0.0092857*B17^2 - 0.39643*B17 + 60.571+2 -> 65.96375 | D17: =(0.010714*B17^2 - 1.8136*B17 + 94.714)+(0.0079048*B17^2 - 1.3243*B17 + 68.467)*3 -> 96.861 | E17: 55 | F17: 68.8565925 | G17: =(0.010714*E17^2 - 1.8136*E17 + 94.714)+(0.0079048*E17^2 - 1.3243*E17 + 68.467)*3 -> 86.00341 | H17: 60 | I17: 72.21372 | J17: =(0.010714*H17^2 - 1.8136*H17 + 94.714)+(0.0079048*H17^2 - 1.3243*H17 + 68.467)*3 -> 76.86724 | K17: 65 | L17: 76.0351325 | M17: =(0.010714*K17^2 - 1.8136*K17 + 94.714)+(0.0079048*K17^2 - 1.3243*K17 + 68.467)*3 -> 69.45249 | N17: 3x 25 l/min + 35 l/min | O17: VPM 30/35/2 W + 3x VPM 20/25/2 W | P17: 44.8 | Q17: 5.7 | R17: 7.865168539
A18: 17 | B18: 50 | C18: =0.0092857*B18^2 - 0.39643*B18 + 60.571+2 -> 65.96375 | D18: =(0.010714*B18^2 - 1.8136*B18 + 94.714)*2+(0.0079048*B18^2 - 1.3243*B18 + 68.467)*2 -> 105.666 | E18: 55 | F18: 68.8565925 | G18: =(0.010714*E18^2 - 1.8136*E18 + 94.714)*2+(0.0079048*E18^2 - 1.3243*E18 + 68.467)*2 -> 93.83674 | H18: 60 | I18: 72.21372 | J18: =(0.010714*H18^2 - 1.8136*H18 + 94.714)*2+(0.0079048*H18^2 - 1.3243*H18 + 68.467)*2 -> 83.86936 | K18: 65 | L18: 76.0351325 | M18: =(0.010714*K18^2 - 1.8136*K18 + 94.714)*2+(0.0079048*K18^2 - 1.3243*K18 + 68.467)*2 -> 75.76386 | N18: 2x 25 l/min +2x 35 l/min | O18: 2x VPM 30/35/2 W + 2x VPM 20/25/2 W | P18: 44.8 | Q18: 5.7 | R18: 7.865168539
A19: 18 | B19: 50 | C19: =0.0092857*B19^2 - 0.39643*B19 + 60.571+2 -> 65.96375 | D19: =(0.010714*B19^2 - 1.8136*B19 + 94.714)*3+(0.0079048*B19^2 - 1.3243*B19 + 68.467) -> 114.471 | E19: 55 | F19: 68.8565925 | G19: =(0.010714*E19^2 - 1.8136*E19 + 94.714)*3+(0.0079048*E19^2 - 1.3243*E19 + 68.467) -> 101.67007 | H19: 60 | I19: 72.21372 | J19: =(0.010714*H19^2 - 1.8136*H19 + 94.714)*3+(0.0079048*H19^2 - 1.3243*H19 + 68.467) -> 90.87148 | K19: 65 | L19: 76.0351325 | M19: =(0.010714*K19^2 - 1.8136*K19 + 94.714)*3+(0.0079048*K19^2 - 1.3243*K19 + 68.467) -> 82.07523 | N19: 25 l/min+ 3x35 l/min | O19: 3x VPM 30/35/2 W + VPM 20/25/2 W | P19: 44.8 | Q19: 5.7 | R19: 7.865168539
A20: 19 | B20: 50 | C20: =-0.00066667*B20^3 + 0.12667*B20^2 - 7.0333*B20 + 183.26+2 -> 66.93625 | D20: =(-0.00028889*B20^3 + 0.065905*B20^2 - 5.4166*B20 + 181.6)*3 -> 118.26375 | E20: 55 | F20: =-0.00066667*E20^3 + 0.12667*E20^2 - 7.0333*E20 + 183.26+2 -> 70.68802875 | G20: =(-0.00028889*E20^3 + 0.065905*E20^2 - 5.4166*E20 + 181.6)*3 -> 104.9566537 | H20: 60 | I20: =-0.00066667*H20^3 + 0.12667*H20^2 - 7.0333*H20 + 183.26+2 -> 75.27328 | J20: =(-0.00028889*H20^3 + 0.065905*H20^2 - 5.4166*H20 + 181.6)*3 -> 94.38528 | K20: 65 | L20: =-0.00066667*K20^3 + 0.12667*K20^2 - 7.0333*K20 + 183.26+2 -> 80.19200125 | M20: =(-0.00028889*K20^3 + 0.065905*K20^2 - 5.4166*K20 + 181.6)*3 -> 85.89962625 | N20: 3x 45 l/min | O20: 3x VPM 40/45/2 W | P20: 44.8 | Q20: 5.7 | R20: 7.865168539
A21: 20 | B21: 50 | C21: =0.0092857*B21^2 - 0.39643*B21 + 60.571+2 -> 65.96375 | D21: =(0.010714*B21^2 - 1.8136*B21 + 94.714)*4 -> 123.276 | E21: 55 | F21: =0.0092857*E21^2 - 0.39643*E21 + 60.571+2 -> 68.8565925 | G21: =(0.010714*E21^2 - 1.8136*E21 + 94.714)*4 -> 109.5034 | H21: 60 | I21: =0.0092857*H21^2 - 0.39643*H21 + 60.571+2 -> 72.21372 | J21: =(0.010714*H21^2 - 1.8136*H21 + 94.714)*4 -> 97.8736 | K21: 65 | L21: =0.0092857*K21^2 - 0.39643*K21 + 60.571+2 -> 76.0351325 | M21: =(0.010714*K21^2 - 1.8136*K21 + 94.714)*4 -> 88.3866 | N21: 4x 35 l/min | O21: 4x VPM 30/35/2 W | P21: 44.8 | Q21: 5.7 | R21: 7.865168539
A22: 21 | B22: 50 | C22: =-0.00066667*B22^3 + 0.12667*B22^2 - 7.0333*B22 + 183.26+2 -> 66.93625 | D22: =(-0.00028889*B22^3 + 0.065905*B22^2 - 5.4166*B22 + 181.6)*4 -> 157.685 | E22: 55 | F22: =-0.00066667*E22^3 + 0.12667*E22^2 - 7.0333*E22 + 183.26+2 -> 70.68802875 | G22: =(-0.00028889*E22^3 + 0.065905*E22^2 - 5.4166*E22 + 181.6)*4 -> 139.942205 | H22: 60 | I22: =-0.00066667*H22^3 + 0.12667*H22^2 - 7.0333*H22 + 183.26+2 -> 75.27328 | J22: =(-0.00028889*H22^3 + 0.065905*H22^2 - 5.4166*H22 + 181.6)*4 -> 125.84704 | K22: 65 | L22: =-0.00066667*K22^3 + 0.12667*K22^2 - 7.0333*K22 + 183.26+2 -> 80.19200125 | M22: =(-0.00028889*K22^3 + 0.065905*K22^2 - 5.4166*K22 + 181.6)*4 -> 114.532835 | N22: 4x 45 l/min | O22: 4x VPM 40/45/2 W | P22: 44.8 | Q22: 5.7 | R22: 7.865168539
A23: Table du "code" 1 à 21 en fonction de la température de consigne 50 55 60 65 et du débit
B24: index T° | C24: index Débit | I24: Température de stockage | J24: Débit | L24: Débit max.
A25: 50 | B25: 3 | C25: 4 | G25: =IF($B$37<J25,1,0) -> 0 | H25: =IF($B$31<J25,1,0) -> 0 | I25: =INDEX(Temperature,K25,$B$29) -> 62.85686 | J25: =INDEX(Temperature,K25,$B$30) -> 9.82864 | K25: 1 | L25: 14 l/min | M25: VPM 20/25/2 W | N25: 60 | O25: 14
A26: 55 | B26: 6 | C26: 7 | G26: 1 | H26: =IF($B$31<J26,1,0) -> 0 | I26: =INDEX(Temperature,K26,$B$29) -> 65.5717 | J26: =INDEX(Temperature,K26,$B$30) -> 14.69232 | K26: 2 | L26: 21 l/min | M26: VPM 20/25/2 W | N26: 60 | O26: 21
A27: 60 | B27: 9 | C27: 10 | G27: 1 | H27: 0 | I27: 67.64252 | J27: =INDEX(Temperature,K27,$B$30) -> 17.46628 | K27: 3 | L27: 25 l/min | M27: VPM 20/25/2 W | N27: 60 | O27: 25
A28: 65 | B28: 12 | C28: 13 | G28: 1 | H28: 0 | I28: 70.07112 | J28: 21.66412 | K28: 4 | L28: 31 l/min | M28: VPM 30/35/2 W | N28: 85
A29: index T° | B29: =VLOOKUP(Calcul2!D119,TempVPM_W!$A$25:$C$28,2,FALSE) -> 9 | G29: 1 | H29: 0 | I29: 72.21372 | J29: 24.4684 | K29: 5 | L29: 35 l/min | M29: VPM 30/35/2 W | N29: 85
A30: index Débit | B30: =VLOOKUP(Calcul2!D119,TempVPM_W!$A$25:$C$28,3,FALSE) -> 10 | G30: 1 | H30: =IF($B$31<J30,1,0) -> 0 | I30: 73.17504 | J30: 28.61304 | K30: 6 | L30: 41 l/min | M30: VPM 40/45/2 W | N30: 109
A31: DébitECS sur t10 = | B31: =Calcul2!F126 -> 29.65290492 | C31: l /mn | G31: 1 | H31: 1 | I31: 75.27328 | J31: 31.46176 | K31: 7 | L31: 45 l/min | M31: VPM 40/45/2 W | N31: 109
A32: TD2Mini.t10 = | B32: =VLOOKUP(1,H25:I45,2,FALSE) -> 75.27328 | C32: °C | F32: 10 logts | G32: 1 | H32: 1 | I32: 67.64252 | J32: 34.93256 | K32: 8 | L32: 2x 25 l/min | M32: 2x VPM 20/25/2 W | N32: 120 | O32: =50 -> 50
A33: Module aguaFLOW | B33: =VLOOKUP(1,H25:M45,6,FALSE) -> VPM 40/45/2 W | G33: 1 | H33: 1 | I33: =INDEX(Temperature,K33,$B$29) -> 72.21372 | J33: =INDEX(Temperature,K33,$B$30) -> 41.93468 | K33: 9 | L33: 25 l/min + 35 l/min | M33: VPM 30/35/2 W + VPM 20/25/2 W | N33: =60+85 -> 145 | O33: 60
A34: "Puissance" | B34: =VLOOKUP(1,H25:N45,7,FALSE) -> 109 | C34: kW | G34: 1 | H34: =IF($B$31<J34,1,0) -> 1 | I34: 72.21372 | J34: 48.9368 | K34: 10 | L34: 2x 35 l/min | M34: 2x VPM 30/35/2 W | N34: 170 | O34: 70
F35: 20 logts | G35: 1 | H35: 1 | I35: 67.64252 | J35: 52.39884 | K35: 11 | L35: 3x 25 l/min | M35: 3x VPM 20/25/2 W | N35: 180 | O35: 75
G36: 1 | H36: 1 | I36: 72.21372 | J36: 59.40096 | K36: 12 | L36: 2x 25 l/min + 35 l/min | M36: VPM 30/35/2 W + 2x VPM 20/25/2 W | N36: =85+60+60 -> 205 | O36: 85
A37: DébitECS sur th = | B37: =Calcul2!F132 -> 13.17761852 | C37: l /mn | G37: 1 | H37: 1 | I37: 75.27328 | J37: 62.92352 | K37: 13 | L37: 2x 45 l/min | M37: 2x VPM 40/45/2 W | N37: 218 | O37: 90
A38: TD2Mini.tc = | B38: =VLOOKUP(1,G25:I45,3,FALSE) -> 65.5717 | C38: °C | G38: 1 | H38: 1 | I38: 72.21372 | J38: 66.40308 | K38: 14 | L38: 25 l/min+ 2x35 l/min | M38: 2x VPM 30/35/2 W + VPM 20/25/2 W | N38: =2*85+60 -> 230 | O38: 95
A39: Module aguaFLOW | B39: =VLOOKUP(1,G25:M45,7,FALSE) -> VPM 20/25/2 W | F39: 30 logts | G39: 1 | H39: 1 | I39: 72.21372 | J39: 73.4052 | K39: 15 | L39: 3x 35 l/min | M39: 3x VPM 30/35/2 W | N39: =3*85 -> 255 | O39: 105
G40: 1 | H40: 1 | I40: 72.21372 | J40: 76.86724 | K40: 16 | L40: 3x 25 l/min + 35 l/min | M40: VPM 30/35/2 W + 3x VPM 20/25/2 W | N40: =85+3*60 -> 265 | O40: 110
G41: 1 | H41: 1 | I41: 72.21372 | J41: 83.86936 | K41: 17 | L41: 2x 25 l/min +2x 35 l/min | M41: 2x VPM 30/35/2 W + 2x VPM 20/25/2 W | N41: =2*85+2*60 -> 290 | O41: 120
G42: 1 | H42: 1 | I42: 72.21372 | J42: 90.87148 | K42: 18 | L42: 25 l/min+ 3x35 l/min | M42: 3x VPM 30/35/2 W + VPM 20/25/2 W | N42: =3*85+60 -> 315 | O42: 130
G43: 1 | H43: 1 | I43: 75.27328 | J43: 94.38528 | K43: 19 | L43: 3x 45 l/min | M43: 3x VPM 40/45/2 W | N43: =3*109 -> 327 | O43: =3*45 -> 135
G44: 1 | H44: 1 | I44: 72.21372 | J44: 97.8736 | K44: 20 | L44: 4x 35 l/min | M44: 4x VPM 30/35/2 W | N44: =4*85 -> 340 | O44: =4*35 -> 140
F45: 50 logts | G45: 1 | H45: 1 | I45: 75.27328 | J45: 125.84704 | K45: 21 | L45: 4x 45 l/min | M45: 4x VPM 40/45/2 W | N45: =4*109 -> 436 | O45: =4*45 -> 180
A50: 1 | B50: VPS 300/3-7 | C50: VPS 300/3-5 | D50: 152 | E50: 303 | F50: 303 | G50: 303
A51: 2 | B51: VPS 500/3-7 | C51: VPS 500/3-5 | D51: 246 | E51: 491 | F51: 491 | G51: 491
A52: 3 | B52: VPS 800/3-7 | C52: VPS 800/3-5 | D52: 390 | E52: 778 | F52: 778 | G52: 778
A53: 4 | B53: VPS 1000/3-7 | C53: VPS 1000/3-5 | D53: 481 | E53: 962 | F53: 962 | G53: 962
A54: 5 | B54: VPS 1500/3-7 | C54: VPS 1500/3-5 | D54: 743 | E54: 1505 | F54: 1505 | G54: 1505
A55: 6 | B55: VPS 2000/3-7 | C55: VPS 2000/3-5 | D55: 959 | E55: 1917 | F55: 1917 | G55: 1917
C56: VPS 1500/3-5 + VPS 1000/3-5 | F56: 2467 | G56: 2467
C57: 2x VPS 1500/3-5 | F57: 3010 | G57: 3010
C58: VPS 2000/3-5 + VPS 1500/3-5 | F58: 3422 | G58: 3422
C59: 2x VPS 2000/3-5 | F59: 3834 | G59: 3834
B60: allSTOR exclusiv | C60: allSTOR plus | D60: Volume utile = env 50% volume stokage | E60: Volume de stockage brut VPS/3-7 | F60: Volume utile = volume de stockage | G60: Volume de stockage brut VPS/3-5

Sheet Offre (hidden)
A1: Report des informations
A2: Ballon : | B2: =Calcul2!AD52 -> VIHR 400 | F2: Données d'entrées de la feuille
A3: auroFLOW : | B3: =Calcul2!AD53 ->  | F3: Données d'entrées de la feuille
A4: Liste des solutions | B4: Références corespondantes | C4: Qté | D4: Références corespondantes | E4: Qté
A5: VIHR 300 | B5: 0010003077 | C5: 1
A6: VIHR 400 | B6: 0010003078 | C6: 1
A7: VIHR 500 | B7: 0010003079 | C7: 1
A8: VIHR 750 | B8: 0010014931 | C8: 1
A9: VIHR 1000 | B9: 0010014932 | C9: 1
A10: VIHR 1500 | B10: 0010014933 | C10: 1
A11: VIHR 2000 | B11: 0010014934 | C11: 1
A12: VIHR 1000 +VIHR 1500 | B12: 0010014932 | C12: 1 | D12: 0010014933 | E12: 1
A13: 2x VIHR 1500 | B13: 0010014933 | C13: 2
A14: VIHR 1500 + VIHR 2000 | B14: 0010014933 | C14: 1 | D14: 0010014934 | E14: 1
A15: 2x VIHR 2000 | B15: 0010014934 | C15: 2
A16: VPS 300 | B16: 0010015118 | C16: 1
A17: VPS 500 | B17: 0010015119 | C17: 1
A18: VPS 800 | B18: 0010015120 | C18: 1
A19: VPS 1000 | B19: 0010015121 | C19: 1
A20: VPS 1500 | B20: 0010015122 | C20: 1
A21: VPS 2000 | B21: 0010015123 | C21: 1
A22: VPS 1500 + VPS 1000 | B22: 0010015122 | C22: 1 | D22: 0010015121 | E22: 1
A23: 2x VPS 1500 | B23: 0010015122 | C23: 2
A24: VPS 2000+ VPS 1500 | B24: 0010015123 | C24: 1 | D24: 0010015122 | E24: 1
A25: 2x VPS 2000 | B25: 0010015123 | C25: 2
A26: VPM 20/25/2 W | B26: 0010014311 | C26: 1
A27: Support fix. mur 1 VPM W (avec collect.) | B27: 10014300 | C27: 1
A28: Kit pompe circulation interne pour VPM W | B28: 10015144 | C28: 1
A29: Kit raccord et tube pour pompe externe | B29: 10015145 | C29: 1
A43: VPM 30/35/2 W | B43: 0010014312 | C43: 1
A44: VPM 40/45/2 W | B44: 0010014313 | C44: 1
A45: 2x VPM 20/25/2 W | B45: 0010014311 | C45: 2
A46: VPM 30/35/2 W + VPM 20/25/2 W | B46: 0010014311 | C46: 1 | D46: 0010014312 | E46: 1
A47: 2x VPM 30/35/2 W | B47: 0010014312 | C47: 2
A48: 3x VPM 20/25/2 W | B48: 0010014311 | C48: 3
A49: VPM 30/35/2 W + 2x VPM 20/25/2 W | B49: 0010014312 | C49: 1 | D49: 0010014311 | E49: 2
A50: 2x VPM 40/45/2 W | B50: 0010014313 | C50: 2
A51: 2x VPM 30/35/2 W + VPM 20/25/2 W | B51: 0010014312 | C51: 2 | D51: 0010014311 | E51: 1
A52: 3x VPM 30/35/2 W | B52: 0010014312 | C52: 3
A53: VPM 30/35/2 W + 3x VPM 20/25/2 W | B53: 0010014312 | C53: 1 | D53: 0010014311 | E53: 3
A54: 2x VPM 30/35/2 W + 2x VPM 20/25/2 W | B54: 0010014312 | C54: 2 | D54: 0010014311 | E54: 2
A55: 3x VPM 30/35/2 W + VPM 20/25/2 W | B55: 0010014312 | C55: 3 | D55: 0010014311 | E55: 1
A56: 3x VPM 40/45/2 W | B56: 0010014313 | C56: 3
A57: 4x VPM 30/35/2 W | B57: 0010014312 | C57: 4
A58: 4x VPM 40/45/2 W | B58: 0010014313 | C58: 4
A60: Liste de produit | B60: Références | C60: Qté
A61: 1 | B61: =VLOOKUP($B$2,$A$5:$E$25,2,FALSE) -> 0010003078 | C61: =VLOOKUP($B$2,$A$5:$E$25,3,FALSE) -> 1 | F61: Recherche ballon 1
A62: =IF(B62=0,"",MAX($A$61:$A61)+1) ->  | B62: =VLOOKUP($B$2,$A$5:$E$25,4,FALSE) -> 0 | C62: =VLOOKUP($B$2,$A$5:$E$58,5,FALSE) -> 0 | F62: Recherche ballon 2
A63: =IF(B63=0,"",MAX($A$61:$A62)+1) ->  | B63: =VLOOKUP($B$3,A26:E58,2,FALSE) ->  | C63: =VLOOKUP($B$3,$A$26:$E$58,3,FALSE) ->  | F63: Recherche aguaFLOW 1
F64: Recherche accessoires aguaFLOW 1
A65: =IF(B65=0,"",MAX($A$61:$A63)+1) ->  | B65: =VLOOKUP($B$3,$A$26:$E$58,4,FALSE) ->  | C65: =VLOOKUP($B$3,$A$26:$E$58,5,FALSE) ->  | F65: Recherche aguaFLOW 2
A67: Liste de produit sans "vide" | B67: Références | C67: Qté
A68: 1 | B68: =IF(ISERROR(VLOOKUP($A68,$A$61:$C$65,2,FALSE))=TRUE,"",VLOOKUP($A68,$A$61:$C$65,2,FALSE)) -> 0010003078 | C68: =IF(ISERROR(VLOOKUP($A68,$A$61:$C$65,3,FALSE))=TRUE,"",VLOOKUP($A68,$A$61:$C$65,3,FALSE)) -> 1 | F68: Données de sorties de la feuille
A69: 2 | B69: =IF(ISERROR(VLOOKUP($A69,$A$61:$C$65,2,FALSE))=TRUE,"",VLOOKUP($A69,$A$61:$C$65,2,FALSE)) ->  | C69: =IF(ISERROR(VLOOKUP($A69,$A$61:$C$65,3,FALSE))=TRUE,"",VLOOKUP($A69,$A$61:$C$65,3,FALSE)) ->  | F69: Données de sorties de la feuille
A70: 3 | B70: =IF(ISERROR(VLOOKUP($A70,$A$61:$C$65,2,FALSE))=TRUE,"",VLOOKUP($A70,$A$61:$C$65,2,FALSE)) ->  | F70: Données de sorties de la feuille
A71: 4 | B71: =IF(ISERROR(VLOOKUP($A71,$A$61:$C$65,2,FALSE))=TRUE,"",VLOOKUP($A71,$A$61:$C$65,2,FALSE)) ->  | F71: Données de sorties de la feuille
D73: aguaFLOW exclusiv VPM 20/25/2 W | E73: aguaFLOW exclusiv VPM 30/35/2 W | F73: aguaFLOW exclusiv VPM 40/45/2 W | G73: Vanne motorisée cascade module VPM W | H73: Support fix. mur 1 VPM W (avec collect.) | I73: Support fix. mur 2 VPM W (avec collect.) | J73: Support fix. mur extens 1 VPM W (collect) | K73: Kit pompe circulation interne pour VPM W | L73: Kit raccord et tube pour pompe externe | M73: nb station sanitaire
D74: 10014311 | E74: 10014312 | F74: 10014313 | G74: 10015146 | H74: 10014300 | I74: 10014301 | J74: 10014303 | K74: 10015144 | L74: 10015145
A75: 1 | B75: VPM 20/25/2 W | C75: 1 | D75: 10014311 | H75: 1 | K75: 1 | L75: 1 | M75: 1
A76: 2 | B76: VPM 30/35/2 W | C76: 2 | E76: 1 | H76: 1 | K76: 1 | L76: 1 | M76: 1
A77: 3 | B77: VPM 40/45/2 W | C77: 3 | F77: 1 | H77: 1 | K77: 1 | L77: 1 | M77: 1
A78: 4 | B78: 2x VPM 20/25/2 W | C78: 4 | D78: 2 | G78: 2 | I78: 1 | K78: 2 | L78: 2 | M78: 2
A79: 5 | B79: VPM 30/35/2 W + VPM 20/25/2 W | C79: 5 | D79: 10014311 | E79: 1 | G79: 2 | I79: 1 | K79: 2 | L79: 2 | M79: 2
A80: 6 | B80: 2x VPM 30/35/2 W | C80: 6 | E80: 2 | G80: 2 | I80: 1 | K80: 2 | L80: 2 | M80: 2
A81: 7 | B81: 3x VPM 20/25/2 W | C81: 7 | D81: 3 | G81: 3 | I81: 1 | J81: 1 | K81: 3 | L81: 3 | M81: 3
A82: 8 | B82: VPM 30/35/2 W + 2x VPM 20/25/2 W | C82: 8 | D82: 2 | E82: 1 | G82: 3 | I82: 1 | J82: 1 | K82: 3 | L82: 3 | M82: 3
A83: 9 | B83: 2x VPM 40/45/2 W | C83: 9 | F83: 2 | G83: 2 | I83: 1 | K83: 2 | L83: 2 | M83: 2
A84: 10 | B84: 2x VPM 30/35/2 W + VPM 20/25/2 W | C84: 10 | D84: 10014311 | E84: 2 | G84: 3 | I84: 1 | J84: 1 | K84: 3 | L84: 3 | M84: 3
A85: 11 | B85: 3x VPM 30/35/2 W | C85: 11 | E85: 3 | G85: 3 | I85: 1 | J85: 1 | K85: 3 | L85: 3 | M85: 3
A86: 12 | B86: VPM 30/35/2 W + 3x VPM 20/25/2 W | C86: 12 | D86: 3 | E86: 1 | G86: 4 | I86: 1 | J86: 2 | K86: 4 | L86: 4 | M86: 4
A87: 13 | B87: 2x VPM 30/35/2 W + 2x VPM 20/25/2 W | C87: 13 | D87: 2 | E87: 2 | G87: 4 | I87: 1 | J87: 2 | K87: 4 | L87: 4 | M87: 4
A88: 14 | B88: 3x VPM 30/35/2 W + VPM 20/25/2 W | C88: 14 | D88: 10014311 | E88: 3 | G88: 4 | I88: 1 | J88: 2 | K88: 4 | L88: 4 | M88: 4
A89: 15 | B89: 3x VPM 40/45/2 W | C89: 15 | F89: 3 | G89: 3 | I89: 1 | J89: 1 | K89: 3 | L89: 3 | M89: 3
A90: 16 | B90: 4x VPM 30/35/2 W | C90: 16 | E90: 4 | G90: 4 | I90: 1 | J90: 2 | K90: 4 | L90: 4 | M90: 4
A91: 17 | B91: 4x VPM 40/45/2 W | C91: 17 | F91: 4 | G91: 4 | I91: 1 | J91: 2 | K91: 4 | L91: 4 | M91: 4
